Workbook

Sheet Resumo
A1: PLANILHA DE CUSTO E FORMAÇÃO DE PREÇOS
A2: Item | B2: CBO | C2: Tipo de serviço / posto | D2: Substituição em Afastamentos | E2: Qde | F2: Meses do Contrato | G2: Remuneração (R$) | H2: Custo unitário mensal (R$) | I2: Valor unitário mensal (R$) | J2: Valor total mensal (R$) | K2: Valor unitário anual (R$) | L2: Valor total anual (R$)
A3: 1 | B3: 4110-05 | C3: Auxiliar Administrativo | D3: Não | E3: 2 | F3: 12 | G3: 0 | H3: ='1.AuxAdm'!$D$93 -> 0 | I3: =ROUND('1.AuxAdm'!$D$95,2) -> 0 | J3: =I3*E3 -> 0 | K3: =I3*F3 -> 0 | L3: =J3*F3 -> 0
A4: 2 | B4: 7823-05 | C4: Motorista de Automóvel | D4: Não | E4: 4 | F4: 12 | G4: 0 | H4: ='2.Mot'!D93 -> 0 | I4: =ROUND('2.Mot'!D95,2) -> 0 | J4: 0 | K4: =I4*F4 -> 0 | L4: =J4*F4 -> 0
A5: 3 | B5: 4110-10 | C5: Assistente Operacional Administrativo-Nível I | D5: Não | E5: 4 | F5: 12 | G5: 0 | H5: ='3.Ass. Op. Adm I'!D93 -> 0 | I5: =ROUND('3.Ass. Op. Adm I'!D95,2) -> 0 | J5: 0 | K5: 0 | L5: 0
A6: 4 | B6: 1416-05 | C6: Gerente de Frota | D6: Não | E6: 1 | F6: 12 | G6: 0 | H6: ='4.Ger. Frota'!D93 -> 0 | I6: =ROUND('4.Ger. Frota'!D95,2) -> 0 | J6: 0 | K6: 0 | L6: 0
A7: 5 | B7: 2521-05 | C7: Assistente Administrativo Nível III - Escolaridade superior | D7: Não | E7: 5 | F7: 12 | G7: 0 | H7: ='5.Ass. Adm. Sup'!D93 -> 0 | I7: =ROUND('5.Ass. Adm. Sup'!D95,2) -> 0 | J7: 0 | K7: 0 | L7: 0
A8: 6 | B8: 2523-05 | C8: Secretária(o) executiva(o) | D8: Não | E8: 2 | F8: 12 | G8: 0 | H8: ='6.Sec. Exe'!D93 -> 0 | I8: =ROUND('6.Sec. Exe'!D95,2) -> 0 | J8: 0 | K8: 0 | L8: 0
A9: 7 | C9: Diária da Viagem (com pernoite) | D9: - | E9: =6*10 -> 60 | F9: 12 | G9: 0 | H9: ='7.Diaria (Com Pernoite)'!D8 -> 0 | I9: =ROUND('7.Diaria (Com Pernoite)'!D21,2) -> 0 | J9: =I9*E9 -> 0 | K9: =I9*F9 -> 0 | L9: =J9*F9 -> 0
A10: 8 | C10: Diária da Viagem (sem pernoite) | D10: - | E10: =6*5 -> 30 | F10: 12 | G10: 0 | H10: ='8.Diaria (Sem Pernoite)'!D9 -> 0 | I10: =ROUND('8.Diaria (Sem Pernoite)'!D21,2) -> 0 | J10: 0 | K10: 0 | L10: 0
C11: VALOR MENSAL DO CONTRATO | E11: =SUM(E3:E8) -> 18 | J11: =SUM(J3:J10) -> 0 | L11: =SUM(L3:L10) -> 0
A12: Obs1 | B12: Os campos em VERMELHOS devem ser preenchidos aqui
A13: Obs2 | B13: E serão usados nos campos ROXOS das abas de cada POSTO

Sheet BDI
B1: PLANILHA DE CUSTOS E FORMAÇÃO DE PREÇOS PARA SERVIÇOS DEDICADOS
A2: A | B2: Dados da Proponente
A3: A1 | B3: Nome da Empresa: | C3: ORÇAMENTO REFERÊNCIAL
A4: A2 | B4: CNPJ:
A5: A3 | B5: Regime Tributário: | C5: LUCRO REAL
A6: M2 | B6: MÓDULO 2: Encargos e benefícios anuais, mensais e diários
A7: 2.2 | B7: Encargos e contribuições sociais | C7: Porcentagem (%)
A8: 2.2.3 | B8: SAT = RAT x FAP | C8: 0.03
A9: 2.2.4 | B9: Salário Educação | C9: 0.025
A10: 2.2.5 | B10: SESC - SESI | C10: 0.015
A11: 2.2.6 | B11: SENAI - SENAC | C11: 0.01
A12: 2.2.7 | B12: SEBRAE | C12: 0.006
A13: 2.2.8 | B13: INCRA | C13: 0.002
A14: M6 | B14: MÓDULO 6: Custos indiretos, tributos e lucro
A15: 6.1 | B15: Custos Indiretos | C15: 0.05
A16: 6.2 | B16: Lucro (L) | C16: 0.0789
A17: 6.3 | B17: Tributos Federais e Estaduais/Municipais (T) | C17: =SUM(C18:C20) -> 0.1425
A18: 6.3.1 | B18: COFINS | C18: 0.0165
A19: 6.3.2 | B19: PIS | C19: 0.076
A20: 6.3.3 | B20: ISSQN | C20: 0.05
A21: TM6 | B21: Total Módulo 6 (BDI) | C21: =ROUND((((1+C15)*(1+C16))/(1-C17))-1,4) -> 0.3211
A22: OBS | B22: OBSERVAÇÕES
A23: Obs1 | B23: Os campos em VERMELHOS devem ser preenchidos aqui
A24: Obs2 | B24: E serão usados nos campos ROXOS das abas de cada POSTO
A25: Obs2 | B25: Custos indiretos, Despesas Fiscais e Lucro: valor deve ser igual ou inferior ao Orçamento de Referência
A26: Obs3 | B26: PIS e COFINS: Regime de Incidencia Acumulativa (0,65% e 3,00% - sem percentual de desconto) ou em Regime de Incidencia Não Acumulativa (1,65% e 7,60% - aplicável percentual de desconto) de acordo com a forma de apuração do lucro no IRPJ. APRESENTAR COMPROVANTES e CALCULO de aproveitamento de créditos tributários dos últimos 12 meses em caso de aplicação de "percentual de desconto".
A27: Obs4 | B27: ISSQN: apresentar documentação referente a aliquota aplicavel como:Lei, Decreto, CNAE, Certidão, Consulta fiscal, Parecer ou Alvará.
A28: Obs5 | B28: SAT = RAT x FAP: eSocial/SEFIP com Comprovante de enquadramento no CNAE + consulta FAP vigente emitida pelo sistema oficial do governo
A29: Obs6 | B29: Demais encargos: apresentar Demonstrativo da SEFIP/GFIP ou Relatório do eSocial/DCTFWeb ou Guias de Recolhimento

Sheet 1.AuxAdm
B1: PLANILHA DE CUSTOS E FORMAÇÃO DE PREÇOS PARA SERVIÇOS DEDICADOS
A2: A | B2: Dados da Proponente
A3: A1 | B3: Nome da Empresa: | C3: =BDI!C3 -> ORÇAMENTO REFERÊNCIAL
A4: A2 | B4: CNPJ: | C4: =BDI!C4 -> 0
A5: A3 | B5: Regime Tributário: | C5: =BDI!C5 -> LUCRO REAL
A6: B | B6: Discriminação dos serviços
A7: B1 | B7: Data da Apresentação da Proposta: | D7: 2025-03-14
A8: B2 | B8: Ano do Acordo, Convenção ou Dissídio Coletivo: | C8: SINTEG x SEAC | D8: 2025/2025
A9: B3 | B9: Registro no MTE | D9: PB000113/2025
A10: B4 | B10: Data base CCT | D10: 2025-01-01
A11: B5 | B11: Fim vigência CCT | D11: 2025-12-31
A12: B6 | B12: Munícipio/UF: | D12: João Pessoa/PB
A13: B7 | B13: Meses de execução contratual: | D13: 12
A14: C | B14: C. Mão de obra vinculada à execução contratual
A15: C1 | B15: Classificação Brasileira de Ocupações (CBO) | C15: =Resumo!B3 -> 4110-05
A16: C2 | B16: Categoria profissional (vinculada à execução contratual) | C16: =Resumo!C3 -> Auxiliar Administrativo
A17: C3 | B17: Carga horaria semanal | C17: 44 | D17: horas/semana
A18: C4 | B18: Jornada seg-qui (incluido 1h almoço) | C18: 9h | D18: 07h45-17h45
A19: C5 | B19: Jornada sex (incluido 1h almoço) | C19: 8h | D19: 08h00-17h00
A20: C6 | B20: Piso normativo da categoria profissional | C20: Valor | D20: 1561
A21: C7 | B21: Salário proposto no contrato | C21: Valor | D21: =Resumo!G3 -> 0
A22: C8 | B22: Profissional será subistituido em afastamentos? | D22: Não
A23: M1 | B23: MÓDULO 1: Composição da remuneração
A24: 1 | B24: Composição da Remuneração | C24: Porcentagem (%) | D24: Valor (R$)
A25: 1.1 | B25: Salário Base | C25: 1 | D25: =D21 -> 0
A26: TM1 | B26: Total Módulo 1 | D26: =SUM(D25:D25) -> 0
A27: M2 | B27: MÓDULO 2: Encargos e benefícios anuais, mensais e diários
A28: 2.1 | B28: 13º salário, férias e adicional de férias (Conta Vinculada) | C28: Porcentagem (%) | D28: Valor (R$)
A29: 2.1.1 | B29: 13º salário | C29: =ROUND(1/12,4) -> 0.0833 | D29: =ROUNDUP($D$26/12,2) -> 0
A30: 2.1.2 | B30: Adicional de Férias (1/3 Constitucional) | C30: =ROUND(1/12/3,4) -> 0.0278 | D30: =ROUNDUP($D$26/3/12,2) -> 0
A31: 2.1.3 | B31: Incidencia dos encargos sociais sobre 13º e 1/3 | C31: =ROUND((C29+C30)*C46,4) -> 0.0409 | D31: =ROUNDUP($D$26*$C31,2) -> 0
A32: 2.2 | B32: Encargos e contribuições sociais | C32: Porcentagem (%) | D32: Valor (R$)
A33: 2.2.1 | B33: INSS | C33: 0.2 | D33: =ROUNDUP($D$26*$C33,2) -> 0
A34: 2.2.2 | B34: FGTS | C34: 0.08 | D34: =ROUNDUP($D$26*$C34,2) -> 0
A35: 2.2.3 | B35: SAT = RAT x FAP | C35: =BDI!C8 -> 0.03 | D35: 0
A36: 2.2.4 | B36: Salário Educação | C36: =BDI!C9 -> 0.025 | D36: 0
A37: 2.2.5 | B37: SESC - SESI | C37: =BDI!C10 -> 0.015 | D37: 0
A38: 2.2.6 | B38: SENAI - SENAC | C38: =BDI!C11 -> 0.01 | D38: 0
A39: 2.2.7 | B39: SEBRAE | C39: =BDI!C12 -> 0.006 | D39: 0
A40: 2.2.8 | B40: INCRA | C40: =BDI!C13 -> 0.002 | D40: 0
A41: 2.3 | B41: Benefícios mensais e diários | C41: Referência | D41: Valor (R$)
A42: 2.3.1 | B42: Vale transporte (CCT C13) | C42: CLT/CCT | D42: =ROUND(IF(D26=0,0,IF((22*5.2*2)-(D26*0.06)>0,(22*5.2*2)-(D26*0.06),0)),2) -> 0
A43: 2.3.2 | B43: Vale alimentação (CCT C12) | C43: CCT | D43: 0
A44: 2.3.3 | B44: Assistência Odontológica (CCT C14) | C44: CCT | D44: 0
A45: SM2.1 | B45: Total Submódulo 2.1 (Conta Vinculada) | C45: =SUM(C29:C31) -> 0.152 | D45: =SUM(D29:D31) -> 0
A46: SM2.2 | B46: Total Submódulo 2.2 | C46: =SUM(C33:C40) -> 0.368 | D46: =SUM(D33:D40) -> 0
A47: SM2.3 | B47: Total Submódulo 2.3 | C47: =ROUND(D47/$D$26,4) ->  | D47: =SUM(D42:D44) -> 0
A48: TM2 | B48: Total Módulo 2 | C48: =ROUND(D48/$D$26,4) ->  | D48: =SUM(D45:D47) -> 0
A49: M3 | B49: MÓDULO 3: Provisão para rescisão e afastamentos (Conta Vinculada)
A50: 3 | B50: Elementos de Custo para Provisão | C50: Porcentagem (%) | D50: Valor (R$)
A51: 3.1.1 | B51: Aviso Prévio Indenizado (API) | C51: =ROUND(1/12*5%,4) -> 0.0042 | D51: =ROUNDUP($D$26*$C51,2) -> 0
A52: 3.1.2 | B52: Incidencia do FGTS sobre API | C52: =ROUND(1/12*5%*8%,4) -> 0.0003 | D52: 0
A53: 3.2 | B53: Aviso Prévio Trabalhado (APT) | C53: 0 | D53: 0
A54: 3.3 | B54: Multa sobre saldo FGTS | C54: =0.08*0.4*(1+2/12+(1/3*1/12)) -> 0.03822222222 | D54: 0
A55: 3.4 | B55: Licença Maternidade | C55: =ROUND((1/12+(1/3/12))*24%*22%*6/12,4) -> 0.0029 | D55: 0
A56: TM3 | B56: Total Módulo 3 (Conta Vinculada) | C56: =SUM(C51:C55) -> 0.04562222222 | D56: =SUM(D51:D55) -> 0
A57: M4 | B57: MÓDULO 4: Provisão de substituição e horas extras (Fato Gerador)
A58: 4.1 | B58: Substituição em afastamentos | C58: Porcentagem (%) | D58: =SUM(D59:D66) -> 0
A59: 4.1.1 | B59: Substituição em Férias | C59: 0 | D59: =ROUNDUP($D$26*$C59,2) -> 0
A60: 4.1.2 | B60: Ausências por enfermidade | C60: 0 | D60: =ROUNDUP($D$26*$C60,2) -> 0
A61: 4.1.3 | B61: Licença Maternidade | C61: 0 | D61: 0
A62: 4.1.4 | B62: Licença Paternidade | C62: 0 | D62: 0
A63: 4.1.5 | B63: Ausências legais | C63: 0 | D63: 0
A64: 4.1.6 | B64: Acidente de trabalho | C64: 0 | D64: 0
A65: 4.1.7 | B65: Aviso Prévio Trabalhado (APT) | C65: 0 | D65: 0
A66: 4.1.8 | B66: Outros (especificar) | C66: 0 | D66: 0
A67: SM4.1 | B67: Subtotal da provisão de substituição e horas extras | C67: =ROUND(D67/$D$26,4) ->  | D67: =D58 -> 0
A68: SM4.2 | B68: Incidencia de proporcional de férias, 1/3 e 13º sobre reposição | C68: =ROUND((2/12+(1/3/12)),4) -> 0.1944 | D68: =ROUNDUP(D67*C68,2) -> 0
A69: SM4.3 | B69: Incidência encargos sociais sobre reposição/extra + proporcional | C69: =C46 -> 0.368 | D69: =ROUNDUP((D67+D68)*C69,2) -> 0
A70: TM4 | B70: Total Módulo 3 (Fato Gerador) | C70: =ROUND(D70/$D$26,4) ->  | D70: =SUM(D67:D69) -> 0
A71: M5 | B71: MÓDULO 5: Insumos de mão de obra
A72: 5.1 | B72: Insumos continuos (Ordinário) | C72: Referência | D72: Valor (R$)
A73: 5.1.1 | B73: Uniforme (não exigido) | D73: 0
A74: 5.2 | B74: Insumos por demanda (Fato Gerador) | C74: Valor Unitário (R$) | D74: Valor Mensal (R$)
A75: 5.2.1 | B75: Alugueis e materiais (não necessário) | C75: 0 | D75: 0
A76: SM5.1 | B76: Total Submódulo 5.1 (Ordinário) | C76: =ROUND(D76/$D$26,4) ->  | D76: =SUM(D73:D73) -> 0
A77: SM5.2 | B77: Total Submódulo 5.2 (Fato Gerador) | D77: =SUM(D75:D75) -> 0
A78: TM5 | B78: Total Módulo 5 | C78: =ROUND(D78/$D$26,4) ->  | D78: =SUM(D76,D77) -> 0
A79: M6 | B79: MÓDULO 6: Custos indiretos, tributos e lucro
A80: 6.1 | B80: Custos Indiretos | C80: STJ | D80: =BDI!C15 -> 0.05
A81: 6.2 | B81: Lucro (L) | C81: STJ | D81: =BDI!C16 -> 0.0789
A82: 6.3 | B82: Tributos Federais e Estaduais/Municipais (T) | C82: FISCAL | D82: =SUM(D83:D85) -> 0.1425
A83: 6.3.1 | B83: COFINS | C83: RFB | D83: =BDI!C18 -> 0.0165
A84: 6.3.2 | B84: PIS | C84: RFB | D84: =BDI!C19 -> 0.076
A85: 6.3.3 | B85: ISSQN | C85: SEFAZ | D85: =BDI!C20 -> 0.05
A86: TM6 | B86: Total Módulo 6 (BDI) | C86: =ROUND((((1+D80)*(1+D81))/(1-D82))-1,4) -> 0.3211 | D86: =ROUNDUP(D93*(C86),2) -> 0
A87: VM | B87: QUADRO-RESUMO VALOR MENSAL POR EMPREGADO
A88: M1 | B88: MÓDULO 1: Composição da remuneração | D88: =D26 -> 0
A89: M2 | B89: MÓDULO 2: Encargos e benefícios anuais, mensais e diários | D89: =D48 -> 0
A90: M3 | B90: MÓDULO 3: Provisão para rescisão e afastamentos | D90: =D56 -> 0
A91: M4 | B91: MÓDULO 4: Provisão de substituição e horas extras | D91: =D70 -> 0
A92: M5 | B92: MÓDULO 5: Insumos de mão de obra | D92: =D78 -> 0
A93: CM | B93: CUSTO MENSAL POR EMPREGADO | D93: =SUM(D88:D92) -> 0
A94: M6 | B94: MÓDULO 6: Custos indiretos, tributos e lucro | D94: =D86 -> 0
A95: VM | B95: VALOR MENSAL POR EMPREGADO | D95: =D93+D94 -> 0
A96: VM.1 | B96: VALOR MENSAL ORDINÁRIO (TM1 + SM2.2 + SM 2.3 + SM5.1) | C96: Incluso BDI | D96: =ROUND((D88+D76+D46+D47)*(1+C86),2) -> 0
A97: VM.2 | B97: RESERVA MENSAL CONTA VINCULADA (M3 + SM2.1) | C97: Incluso BDI | D97: =ROUND((D45+D56)*(1+C86),2) -> 0
A98: VM.3 | B98: RESERVA MENSAL FATO GERADOR (M4 + SM5.2) | C98: Incluso BDI | D98: =ROUND((D70+D77)*(1+C86),2) -> 0

Sheet 2.Mot
B1: PLANILHA DE CUSTOS E FORMAÇÃO DE PREÇOS PARA SERVIÇOS DEDICADOS
A2: A | B2: Dados da Proponente
A3: A1 | B3: Nome da Empresa: | C3: =BDI!C3 -> ORÇAMENTO REFERÊNCIAL
A4: A2 | B4: CNPJ: | C4: =BDI!C4 -> 0
A5: A3 | B5: Regime Tributário: | C5: =BDI!C5 -> LUCRO REAL
A6: B | B6: Discriminação dos serviços
A7: B1 | B7: Data da Apresentação da Proposta: | D7: 2025-03-14
A8: B2 | B8: Ano do Acordo, Convenção ou Dissídio Coletivo: | C8: SINTEG x SEAC | D8: 2025/2025
A9: B3 | B9: Registro no MTE | D9: PB000113/2025
A10: B4 | B10: Data base CCT | D10: 2025-01-01
A11: B5 | B11: Fim vigência CCT | D11: 2025-12-31
A12: B6 | B12: Munícipio/UF: | D12: João Pessoa/PB
A13: B7 | B13: Meses de execução contratual: | D13: 12
A14: C | B14: C. Mão de obra vinculada à execução contratual
A15: C1 | B15: Classificação Brasileira de Ocupações (CBO) | C15: =Resumo!B4 -> 7823-05
A16: C2 | B16: Categoria profissional (vinculada à execução contratual) | C16: =Resumo!C4 -> Motorista de Automóvel
A17: C3 | B17: Carga horaria semanal | C17: 44 | D17: horas/semana
A18: C4 | B18: Jornada seg-qui (incluido 1h almoço) | C18: 9h | D18: 08h00-18h00
A19: C5 | B19: Jornada sex (incluido 1h almoço) | C19: 8h | D19: 08h00-17h00
A20: C6 | B20: Piso normativo da categoria profissional | C20: Valor | D20: 2534.04
A21: C7 | B21: Salário proposto no contrato | C21: Valor | D21: =Resumo!G4 -> 0
A22: C8 | B22: Profissional será subistituido em afastamentos? | D22: Não
A23: M1 | B23: MÓDULO 1: Composição da remuneração
A24: 1 | B24: Composição da Remuneração | C24: Porcentagem (%) | D24: Valor (R$)
A25: 1.1 | B25: Salário Base | C25: 1 | D25: =D21 -> 0
A26: TM1 | B26: Total Módulo 1 | D26: =SUM(D25:D25) -> 0
A27: M2 | B27: MÓDULO 2: Encargos e benefícios anuais, mensais e diários
A28: 2.1 | B28: 13º salário, férias e adicional de férias (Conta Vinculada) | C28: Porcentagem (%) | D28: Valor (R$)
A29: 2.1.1 | B29: 13º salário | C29: =ROUND(1/12,4) -> 0.0833 | D29: =ROUNDUP($D$26/12,2) -> 0
A30: 2.1.2 | B30: Adicional de Férias (1/3 Constitucional) | C30: =ROUND(1/12/3,4) -> 0.0278 | D30: =ROUNDUP($D$26/3/12,2) -> 0
A31: 2.1.3 | B31: Incidencia dos encargos sociais sobre 13º e 1/3 | C31: =ROUND((C29+C30)*C46,4) -> 0.0409 | D31: =ROUNDUP($D$26*$C31,2) -> 0
A32: 2.2 | B32: Encargos e contribuições sociais | C32: Porcentagem (%) | D32: Valor (R$)
A33: 2.2.1 | B33: INSS | C33: 0.2 | D33: =ROUNDUP($D$26*$C33,2) -> 0
A34: 2.2.2 | B34: FGTS | C34: 0.08 | D34: =ROUNDUP($D$26*$C34,2) -> 0
A35: 2.2.3 | B35: SAT = RAT x FAP | C35: =BDI!C8 -> 0.03 | D35: 0
A36: 2.2.4 | B36: Salário Educação | C36: =BDI!C9 -> 0.025 | D36: 0
A37: 2.2.5 | B37: SESC - SESI | C37: =BDI!C10 -> 0.015 | D37: 0
A38: 2.2.6 | B38: SENAI - SENAC | C38: =BDI!C11 -> 0.01 | D38: 0
A39: 2.2.7 | B39: SEBRAE | C39: =BDI!C12 -> 0.006 | D39: 0
A40: 2.2.8 | B40: INCRA | C40: =BDI!C13 -> 0.002 | D40: 0
A41: 2.3 | B41: Benefícios mensais e diários | C41: Referência | D41: Valor (R$)
A42: 2.3.1 | B42: Vale transporte (CCT C13) | C42: CLT/CCT | D42: =ROUND(IF(D26=0,0,IF((22*5.2*2)-(D26*0.06)>0,(22*5.2*2)-(D26*0.06),0)),2) -> 0
A43: 2.3.2 | B43: Vale alimentação (CCT C12) | C43: CCT | D43: 0
A44: 2.3.3 | B44: Assistência Odontológica (CCT C14) | C44: CCT | D44: 0
A45: SM2.1 | B45: Total Submódulo 2.1 (Conta Vinculada) | C45: =SUM(C29:C31) -> 0.152 | D45: =SUM(D29:D31) -> 0
A46: SM2.2 | B46: Total Submódulo 2.2 | C46: =SUM(C33:C40) -> 0.368 | D46: =SUM(D33:D40) -> 0
A47: SM2.3 | B47: Total Submódulo 2.3 | C47: =ROUND(D47/$D$26,4) ->  | D47: =SUM(D42:D44) -> 0
A48: TM2 | B48: Total Módulo 2 | C48: =ROUND(D48/$D$26,4) ->  | D48: =SUM(D45:D47) -> 0
A49: M3 | B49: MÓDULO 3: Provisão para rescisão e afastamentos (Conta Vinculada)
A50: 3 | B50: Elementos de Custo para Provisão | C50: Porcentagem (%) | D50: Valor (R$)
A51: 3.1.1 | B51: Aviso Prévio Indenizado (API) | C51: =ROUND(1/12*5%,4) -> 0.0042 | D51: =ROUNDUP($D$26*$C51,2) -> 0
A52: 3.1.2 | B52: Incidencia do FGTS sobre API | C52: =ROUND(1/12*5%*8%,4) -> 0.0003 | D52: 0
A53: 3.2 | B53: Aviso Prévio Trabalhado (APT) | C53: 0 | D53: 0
A54: 3.3 | B54: Multa sobre saldo FGTS | C54: =0.08*0.4*(1+2/12+(1/3*1/12)) -> 0.03822222222 | D54: 0
A55: 3.4 | B55: Licença Maternidade | C55: =ROUND((1/12+(1/3/12))*24%*22%*6/12,4) -> 0.0029 | D55: 0
A56: TM3 | B56: Total Módulo 3 (Conta Vinculada) | C56: =SUM(C51:C55) -> 0.04562222222 | D56: =SUM(D51:D55) -> 0
A57: M4 | B57: MÓDULO 4: Provisão de substituição e horas extras (Fato Gerador)
A58: 4.1 | B58: Substituição em afastamentos | C58: Porcentagem (%) | D58: =SUM(D59:D66) -> 0
A59: 4.1.1 | B59: Substituição em Férias | C59: 0 | D59: =ROUNDUP($D$26*$C59,2) -> 0
A60: 4.1.2 | B60: Ausências por enfermidade | C60: 0 | D60: =ROUNDUP($D$26*$C60,2) -> 0
A61: 4.1.3 | B61: Licença Maternidade | C61: 0 | D61: 0
A62: 4.1.4 | B62: Licença Paternidade | C62: 0 | D62: 0
A63: 4.1.5 | B63: Ausências legais | C63: 0 | D63: 0
A64: 4.1.6 | B64: Acidente de trabalho | C64: 0 | D64: 0
A65: 4.1.7 | B65: Aviso Prévio Trabalhado (APT) | C65: 0 | D65: 0
A66: 4.1.8 | B66: Outros (especificar) | C66: 0 | D66: 0
A67: SM4.1 | B67: Subtotal da provisão de substituição e horas extras | C67: =ROUND(D67/$D$26,4) ->  | D67: =D58 -> 0
A68: SM4.2 | B68: Incidencia de proporcional de férias, 1/3 e 13º sobre reposição | C68: =ROUND((2/12+(1/3/12)),4) -> 0.1944 | D68: =ROUNDUP(D67*C68,2) -> 0
A69: SM4.3 | B69: Incidência encargos sociais sobre reposição/extra + proporcional | C69: =C46 -> 0.368 | D69: =ROUNDUP((D67+D68)*C69,2) -> 0
A70: TM4 | B70: Total Módulo 3 (Fato Gerador) | C70: =ROUND(D70/$D$26,4) ->  | D70: =SUM(D67:D69) -> 0
A71: M5 | B71: MÓDULO 5: Insumos de mão de obra
A72: 5.1 | B72: Insumos continuos (Ordinário) | C72: Referência | D72: Valor (R$)
A73: 5.1.1 | B73: Uniforme - 6 conjuntos de calça e camisa social (que pode ser manga curta ou longa), de sarja ou brim e um par de sapatos a cada 180 dias | C73: Pesquisa | D73: 0
A74: 5.2 | B74: Insumos por demanda (Fato Gerador) | C74: Valor Unitário (R$) | D74: Valor Mensal (R$)
A75: 5.2.1 | B75: Alugueis e materiais (não necessário) | C75: 0 | D75: 0
A76: SM5.1 | B76: Total Submódulo 5.1 (Ordinário) | C76: =ROUND(D76/$D$26,4) ->  | D76: =SUM(D73:D73) -> 0
A77: SM5.2 | B77: Total Submódulo 5.2 (Fato Gerador) | D77: =SUM(D75:D75) -> 0
A78: TM5 | B78: Total Módulo 5 | C78: =ROUND(D78/$D$26,4) ->  | D78: =SUM(D76,D77) -> 0
A79: M6 | B79: MÓDULO 6: Custos indiretos, tributos e lucro
A80: 6.1 | B80: Custos Indiretos | C80: STJ | D80: =BDI!C15 -> 0.05
A81: 6.2 | B81: Lucro (L) | C81: STJ | D81: =BDI!C16 -> 0.0789
A82: 6.3 | B82: Tributos Federais e Estaduais/Municipais (T) | C82: FISCAL | D82: =SUM(D83:D85) -> 0.1425
A83: 6.3.1 | B83: COFINS | C83: RFB | D83: =BDI!C18 -> 0.0165
A84: 6.3.2 | B84: PIS | C84: RFB | D84: =BDI!C19 -> 0.076
A85: 6.3.3 | B85: ISSQN | C85: SEFAZ | D85: =BDI!C20 -> 0.05
A86: TM6 | B86: Total Módulo 6 (BDI) | C86: =ROUND((((1+D80)*(1+D81))/(1-D82))-1,4) -> 0.3211 | D86: =ROUNDUP(D93*(C86),2) -> 0
A87: VM | B87: QUADRO-RESUMO VALOR MENSAL POR EMPREGADO
A88: M1 | B88: MÓDULO 1: Composição da remuneração | D88: =D26 -> 0
A89: M2 | B89: MÓDULO 2: Encargos e benefícios anuais, mensais e diários | D89: =D48 -> 0
A90: M3 | B90: MÓDULO 3: Provisão para rescisão e afastamentos | D90: =D56 -> 0
A91: M4 | B91: MÓDULO 4: Provisão de substituição e horas extras | D91: =D70 -> 0
A92: M5 | B92: MÓDULO 5: Insumos de mão de obra | D92: =D78 -> 0
A93: CM | B93: CUSTO MENSAL POR EMPREGADO | D93: =SUM(D88:D92) -> 0
A94: M6 | B94: MÓDULO 6: Custos indiretos, tributos e lucro | D94: =D86 -> 0
A95: VM | B95: VALOR MENSAL POR EMPREGADO | D95: =D93+D94 -> 0
A96: VM.1 | B96: VALOR MENSAL ORDINÁRIO (TM1 + SM2.2 + SM 2.3 + SM5.1) | C96: Incluso BDI | D96: =ROUND((D88+D76+D46+D47)*(1+C86),2) -> 0
A97: VM.2 | B97: RESERVA MENSAL CONTA VINCULADA (M3 + SM2.1) | C97: Incluso BDI | D97: =ROUND((D45+D56)*(1+C86),2) -> 0
A98: VM.3 | B98: RESERVA MENSAL FATO GERADOR (M4 + SM5.2) | C98: Incluso BDI | D98: =ROUND((D70+D77)*(1+C86),2) -> 0

Sheet 3.Ass. Op. Adm I
B1: PLANILHA DE CUSTOS E FORMAÇÃO DE PREÇOS PARA SERVIÇOS DEDICADOS
A2: A | B2: Dados da Proponente
A3: A1 | B3: Nome da Empresa: | C3: =BDI!C3 -> ORÇAMENTO REFERÊNCIAL
A4: A2 | B4: CNPJ: | C4: =BDI!C4 -> 0
A5: A3 | B5: Regime Tributário: | C5: =BDI!C5 -> LUCRO REAL
A6: B | B6: Discriminação dos serviços
A7: B1 | B7: Data da Apresentação da Proposta: | D7: 2025-03-14
A8: B2 | B8: Ano do Acordo, Convenção ou Dissídio Coletivo: | C8: SINTEG x SEAC | D8: 2025/2025
A9: B3 | B9: Registro no MTE | D9: PB000113/2025
A10: B4 | B10: Data base CCT | D10: 2025-01-01
A11: B5 | B11: Fim vigência CCT | D11: 2025-12-31
A12: B6 | B12: Munícipio/UF: | D12: João Pessoa/PB
A13: B7 | B13: Meses de execução contratual: | D13: 12
A14: C | B14: C. Mão de obra vinculada à execução contratual
A15: C1 | B15: Classificação Brasileira de Ocupações (CBO) | C15: =Resumo!B5 -> 4110-10
A16: C2 | B16: Categoria profissional (vinculada à execução contratual) | C16: =Resumo!C5 -> Assistente Operacional Administrativo-Nível I
A17: C3 | B17: Carga horaria semanal | C17: 44 | D17: horas/semana
A18: C4 | B18: Jornada seg-qui (incluido 1h almoço) | C18: 9h | D18: 07h45-17h45
A19: C5 | B19: Jornada sex (incluido 1h almoço) | C19: 8h | D19: 08h00-17h00
A20: C6 | B20: Piso normativo da categoria profissional | C20: Valor | D20: 3309.03
A21: C7 | B21: Salário proposto no contrato | C21: Valor | D21: =Resumo!G5 -> 0
A22: C8 | B22: Profissional será subistituido em afastamentos? | D22: Não
A23: M1 | B23: MÓDULO 1: Composição da remuneração
A24: 1 | B24: Composição da Remuneração | C24: Porcentagem (%) | D24: Valor (R$)
A25: 1.1 | B25: Salário Base | C25: 1 | D25: =D21 -> 0
A26: TM1 | B26: Total Módulo 1 | D26: =SUM(D25:D25) -> 0
A27: M2 | B27: MÓDULO 2: Encargos e benefícios anuais, mensais e diários
A28: 2.1 | B28: 13º salário, férias e adicional de férias (Conta Vinculada) | C28: Porcentagem (%) | D28: Valor (R$)
A29: 2.1.1 | B29: 13º salário | C29: =ROUND(1/12,4) -> 0.0833 | D29: =ROUNDUP($D$26/12,2) -> 0
A30: 2.1.2 | B30: Adicional de Férias (1/3 Constitucional) | C30: =ROUND(1/12/3,4) -> 0.0278 | D30: =ROUNDUP($D$26/3/12,2) -> 0
A31: 2.1.3 | B31: Incidencia dos encargos sociais sobre 13º e 1/3 | C31: =ROUND((C29+C30)*C46,4) -> 0.0409 | D31: =ROUNDUP($D$26*$C31,2) -> 0
A32: 2.2 | B32: Encargos e contribuições sociais | C32: Porcentagem (%) | D32: Valor (R$)
A33: 2.2.1 | B33: INSS | C33: 0.2 | D33: =ROUNDUP($D$26*$C33,2) -> 0
A34: 2.2.2 | B34: FGTS | C34: 0.08 | D34: =ROUNDUP($D$26*$C34,2) -> 0
A35: 2.2.3 | B35: SAT = RAT x FAP | C35: =BDI!C8 -> 0.03 | D35: 0
A36: 2.2.4 | B36: Salário Educação | C36: =BDI!C9 -> 0.025 | D36: 0
A37: 2.2.5 | B37: SESC - SESI | C37: =BDI!C10 -> 0.015 | D37: 0
A38: 2.2.6 | B38: SENAI - SENAC | C38: =BDI!C11 -> 0.01 | D38: 0
A39: 2.2.7 | B39: SEBRAE | C39: =BDI!C12 -> 0.006 | D39: 0
A40: 2.2.8 | B40: INCRA | C40: =BDI!C13 -> 0.002 | D40: 0
A41: 2.3 | B41: Benefícios mensais e diários | C41: Referência | D41: Valor (R$)
A42: 2.3.1 | B42: Vale transporte (CCT C13) | C42: CLT/CCT | D42: =ROUND(IF(D26=0,0,IF((22*5.2*2)-(D26*0.06)>0,(22*5.2*2)-(D26*0.06),0)),2) -> 0
A43: 2.3.2 | B43: Vale alimentação (CCT C12) | C43: CCT | D43: 0
A44: 2.3.3 | B44: Assistência Odontológica (CCT C14) | C44: CCT | D44: 0
A45: SM2.1 | B45: Total Submódulo 2.1 (Conta Vinculada) | C45: =SUM(C29:C31) -> 0.152 | D45: =SUM(D29:D31) -> 0
A46: SM2.2 | B46: Total Submódulo 2.2 | C46: =SUM(C33:C40) -> 0.368 | D46: =SUM(D33:D40) -> 0
A47: SM2.3 | B47: Total Submódulo 2.3 | C47: =ROUND(D47/$D$26,4) ->  | D47: =SUM(D42:D44) -> 0
A48: TM2 | B48: Total Módulo 2 | C48: =ROUND(D48/$D$26,4) ->  | D48: =SUM(D45:D47) -> 0
A49: M3 | B49: MÓDULO 3: Provisão para rescisão e afastamentos (Conta Vinculada)
A50: 3 | B50: Elementos de Custo para Provisão | C50: Porcentagem (%) | D50: Valor (R$)
A51: 3.1.1 | B51: Aviso Prévio Indenizado (API) | C51: =ROUND(1/12*5%,4) -> 0.0042 | D51: =ROUNDUP($D$26*$C51,2) -> 0
A52: 3.1.2 | B52: Incidencia do FGTS sobre API | C52: =ROUND(1/12*5%*8%,4) -> 0.0003 | D52: 0
A53: 3.2 | B53: Aviso Prévio Trabalhado (APT) | C53: 0 | D53: 0
A54: 3.3 | B54: Multa sobre saldo FGTS | C54: =0.08*0.4*(1+2/12+(1/3*1/12)) -> 0.03822222222 | D54: 0
A55: 3.4 | B55: Licença Maternidade | C55: =ROUND((1/12+(1/3/12))*24%*22%*6/12,4) -> 0.0029 | D55: 0
A56: TM3 | B56: Total Módulo 3 (Conta Vinculada) | C56: =SUM(C51:C55) -> 0.04562222222 | D56: =SUM(D51:D55) -> 0
A57: M4 | B57: MÓDULO 4: Provisão de substituição e horas extras (Fato Gerador)
A58: 4.1 | B58: Substituição em afastamentos | C58: Porcentagem (%) | D58: =SUM(D59:D66) -> 0
A59: 4.1.1 | B59: Substituição em Férias | C59: 0 | D59: =ROUNDUP($D$26*$C59,2) -> 0
A60: 4.1.2 | B60: Ausências por enfermidade | C60: 0 | D60: =ROUNDUP($D$26*$C60,2) -> 0
A61: 4.1.3 | B61: Licença Maternidade | C61: 0 | D61: 0
A62: 4.1.4 | B62: Licença Paternidade | C62: 0 | D62: 0
A63: 4.1.5 | B63: Ausências legais | C63: 0 | D63: 0
A64: 4.1.6 | B64: Acidente de trabalho | C64: 0 | D64: 0
A65: 4.1.7 | B65: Aviso Prévio Trabalhado (APT) | C65: 0 | D65: 0
A66: 4.1.8 | B66: Outros (especificar) | C66: 0 | D66: 0
A67: SM4.1 | B67: Subtotal da provisão de substituição e horas extras | C67: =ROUND(D67/$D$26,4) ->  | D67: =D58 -> 0
A68: SM4.2 | B68: Incidencia de proporcional de férias, 1/3 e 13º sobre reposição | C68: =ROUND((2/12+(1/3/12)),4) -> 0.1944 | D68: =ROUNDUP(D67*C68,2) -> 0
A69: SM4.3 | B69: Incidência encargos sociais sobre reposição/extra + proporcional | C69: =C46 -> 0.368 | D69: =ROUNDUP((D67+D68)*C69,2) -> 0
A70: TM4 | B70: Total Módulo 3 (Fato Gerador) | C70: =ROUND(D70/$D$26,4) ->  | D70: =SUM(D67:D69) -> 0
A71: M5 | B71: MÓDULO 5: Insumos de mão de obra
A72: 5.1 | B72: Insumos continuos (Ordinário) | C72: Referência | D72: Valor (R$)
A73: 5.1.1 | B73: Uniforme (não exigido) | D73: 0
A74: 5.2 | B74: Insumos por demanda (Fato Gerador) | C74: Valor Unitário (R$) | D74: Valor Mensal (R$)
A75: 5.2.1 | B75: Alugueis e materiais (não necessário) | C75: 0 | D75: 0
A76: SM5.1 | B76: Total Submódulo 5.1 (Ordinário) | C76: =ROUND(D76/$D$26,4) ->  | D76: =SUM(D73:D73) -> 0
A77: SM5.2 | B77: Total Submódulo 5.2 (Fato Gerador) | D77: =SUM(D75:D75) -> 0
A78: TM5 | B78: Total Módulo 5 | C78: =ROUND(D78/$D$26,4) ->  | D78: =SUM(D76,D77) -> 0
A79: M6 | B79: MÓDULO 6: Custos indiretos, tributos e lucro
A80: 6.1 | B80: Custos Indiretos | C80: STJ | D80: =BDI!C15 -> 0.05
A81: 6.2 | B81: Lucro (L) | C81: STJ | D81: =BDI!C16 -> 0.0789
A82: 6.3 | B82: Tributos Federais e Estaduais/Municipais (T) | C82: FISCAL | D82: =SUM(D83:D85) -> 0.1425
A83: 6.3.1 | B83: COFINS | C83: RFB | D83: =BDI!C18 -> 0.0165
A84: 6.3.2 | B84: PIS | C84: RFB | D84: =BDI!C19 -> 0.076
A85: 6.3.3 | B85: ISSQN | C85: SEFAZ | D85: =BDI!C20 -> 0.05
A86: TM6 | B86: Total Módulo 6 (BDI) | C86: =ROUND((((1+D80)*(1+D81))/(1-D82))-1,4) -> 0.3211 | D86: =ROUNDUP(D93*(C86),2) -> 0
A87: VM | B87: QUADRO-RESUMO VALOR MENSAL POR EMPREGADO
A88: M1 | B88: MÓDULO 1: Composição da remuneração | D88: =D26 -> 0
A89: M2 | B89: MÓDULO 2: Encargos e benefícios anuais, mensais e diários | D89: =D48 -> 0
A90: M3 | B90: MÓDULO 3: Provisão para rescisão e afastamentos | D90: =D56 -> 0
A91: M4 | B91: MÓDULO 4: Provisão de substituição e horas extras | D91: =D70 -> 0
A92: M5 | B92: MÓDULO 5: Insumos de mão de obra | D92: =D78 -> 0
A93: CM | B93: CUSTO MENSAL POR EMPREGADO | D93: =SUM(D88:D92) -> 0
A94: M6 | B94: MÓDULO 6: Custos indiretos, tributos e lucro | D94: =D86 -> 0
A95: VM | B95: VALOR MENSAL POR EMPREGADO | D95: =D93+D94 -> 0
A96: VM.1 | B96: VALOR MENSAL ORDINÁRIO (TM1 + SM2.2 + SM 2.3 + SM5.1) | C96: Incluso BDI | D96: =ROUND((D88+D76+D46+D47)*(1+C86),2) -> 0
A97: VM.2 | B97: RESERVA MENSAL CONTA VINCULADA (M3 + SM2.1) | C97: Incluso BDI | D97: =ROUND((D45+D56)*(1+C86),2) -> 0
A98: VM.3 | B98: RESERVA MENSAL FATO GERADOR (M4 + SM5.2) | C98: Incluso BDI | D98: =ROUND((D70+D77)*(1+C86),2) -> 0

Sheet 4.Ger. Frota
B1: PLANILHA DE CUSTOS E FORMAÇÃO DE PREÇOS PARA SERVIÇOS DEDICADOS
A2: A | B2: Dados da Proponente
A3: A1 | B3: Nome da Empresa: | C3: =BDI!C3 -> ORÇAMENTO REFERÊNCIAL
A4: A2 | B4: CNPJ: | C4: =BDI!C4 -> 0
A5: A3 | B5: Regime Tributário: | C5: =BDI!C5 -> LUCRO REAL
A6: B | B6: Discriminação dos serviços
A7: B1 | B7: Data da Apresentação da Proposta: | D7: 2025-03-14
A8: B2 | B8: Ano do Acordo, Convenção ou Dissídio Coletivo: | C8: SINTEG x SEAC | D8: 2025/2025
A9: B3 | B9: Registro no MTE | D9: PB000113/2025
A10: B4 | B10: Data base CCT | D10: 2025-01-01
A11: B5 | B11: Fim vigência CCT | D11: 2025-12-31
A12: B6 | B12: Munícipio/UF: | D12: João Pessoa/PB
A13: B7 | B13: Meses de execução contratual: | D13: 12
A14: C | B14: C. Mão de obra vinculada à execução contratual
A15: C1 | B15: Classificação Brasileira de Ocupações (CBO) | C15: =Resumo!B6 -> 1416-05
A16: C2 | B16: Categoria profissional (vinculada à execução contratual) | C16: =Resumo!C6 -> Gerente de Frota
A17: C3 | B17: Carga horaria semanal | C17: 44 | D17: horas/semana
A18: C4 | B18: Jornada seg-qui (incluido 1h almoço) | C18: 9h | D18: 07h30-17h30
A19: C5 | B19: Jornada sex (incluido 1h almoço) | C19: 8h | D19: 07h45-16h45
A20: C6 | B20: Piso normativo da categoria profissional | C20: Valor | D20: 4206.46
A21: C7 | B21: Salário proposto no contrato | C21: Valor | D21: =Resumo!G6 -> 0
A22: C8 | B22: Profissional será subistituido em afastamentos? | D22: Não
A23: M1 | B23: MÓDULO 1: Composição da remuneração
A24: 1 | B24: Composição da Remuneração | C24: Porcentagem (%) | D24: Valor (R$)
A25: 1.1 | B25: Salário Base | C25: 1 | D25: =D21 -> 0
A26: TM1 | B26: Total Módulo 1 | D26: =SUM(D25:D25) -> 0
A27: M2 | B27: MÓDULO 2: Encargos e benefícios anuais, mensais e diários
A28: 2.1 | B28: 13º salário, férias e adicional de férias (Conta Vinculada) | C28: Porcentagem (%) | D28: Valor (R$)
A29: 2.1.1 | B29: 13º salário | C29: =ROUND(1/12,4) -> 0.0833 | D29: =ROUNDUP($D$26/12,2) -> 0
A30: 2.1.2 | B30: Adicional de Férias (1/3 Constitucional) | C30: =ROUND(1/12/3,4) -> 0.0278 | D30: =ROUNDUP($D$26/3/12,2) -> 0
A31: 2.1.3 | B31: Incidencia dos encargos sociais sobre 13º e 1/3 | C31: =ROUND((C29+C30)*C46,4) -> 0.0409 | D31: =ROUNDUP($D$26*$C31,2) -> 0
A32: 2.2 | B32: Encargos e contribuições sociais | C32: Porcentagem (%) | D32: Valor (R$)
A33: 2.2.1 | B33: INSS | C33: 0.2 | D33: =ROUNDUP($D$26*$C33,2) -> 0
A34: 2.2.2 | B34: FGTS | C34: 0.08 | D34: =ROUNDUP($D$26*$C34,2) -> 0
A35: 2.2.3 | B35: SAT = RAT x FAP | C35: =BDI!C8 -> 0.03 | D35: 0
A36: 2.2.4 | B36: Salário Educação | C36: =BDI!C9 -> 0.025 | D36: 0
A37: 2.2.5 | B37: SESC - SESI | C37: =BDI!C10 -> 0.015 | D37: 0
A38: 2.2.6 | B38: SENAI - SENAC | C38: =BDI!C11 -> 0.01 | D38: 0
A39: 2.2.7 | B39: SEBRAE | C39: =BDI!C12 -> 0.006 | D39: 0
A40: 2.2.8 | B40: INCRA | C40: =BDI!C13 -> 0.002 | D40: 0
A41: 2.3 | B41: Benefícios mensais e diários | C41: Referência | D41: Valor (R$)
A42: 2.3.1 | B42: Vale transporte (CCT C13) | C42: CLT/CCT | D42: =ROUND(IF(D26=0,0,IF((22*5.2*2)-(D26*0.06)>0,(22*5.2*2)-(D26*0.06),0)),2) -> 0
A43: 2.3.2 | B43: Vale alimentação (CCT C12) | C43: CCT | D43: 0
A44: 2.3.3 | B44: Assistência Odontológica (CCT C14) | C44: CCT | D44: 0
A45: SM2.1 | B45: Total Submódulo 2.1 (Conta Vinculada) | C45: =SUM(C29:C31) -> 0.152 | D45: =SUM(D29:D31) -> 0
A46: SM2.2 | B46: Total Submódulo 2.2 | C46: =SUM(C33:C40) -> 0.368 | D46: =SUM(D33:D40) -> 0
A47: SM2.3 | B47: Total Submódulo 2.3 | C47: =ROUND(D47/$D$26,4) ->  | D47: =SUM(D42:D44) -> 0
A48: TM2 | B48: Total Módulo 2 | C48: =ROUND(D48/$D$26,4) ->  | D48: =SUM(D45:D47) -> 0
A49: M3 | B49: MÓDULO 3: Provisão para rescisão e afastamentos (Conta Vinculada)
A50: 3 | B50: Elementos de Custo para Provisão | C50: Porcentagem (%) | D50: Valor (R$)
A51: 3.1.1 | B51: Aviso Prévio Indenizado (API) | C51: =ROUND(1/12*5%,4) -> 0.0042 | D51: =ROUNDUP($D$26*$C51,2) -> 0
A52: 3.1.2 | B52: Incidencia do FGTS sobre API | C52: =ROUND(1/12*5%*8%,4) -> 0.0003 | D52: 0
A53: 3.2 | B53: Aviso Prévio Trabalhado (APT) | C53: 0 | D53: 0
A54: 3.3 | B54: Multa sobre saldo FGTS | C54: =0.08*0.4*(1+2/12+(1/3*1/12)) -> 0.03822222222 | D54: 0
A55: 3.4 | B55: Licença Maternidade | C55: =ROUND((1/12+(1/3/12))*24%*22%*6/12,4) -> 0.0029 | D55: 0
A56: TM3 | B56: Total Módulo 3 (Conta Vinculada) | C56: =SUM(C51:C55) -> 0.04562222222 | D56: =SUM(D51:D55) -> 0
A57: M4 | B57: MÓDULO 4: Provisão de substituição e horas extras (Fato Gerador)
A58: 4.1 | B58: Substituição em afastamentos | C58: Porcentagem (%) | D58: =SUM(D59:D66) -> 0
A59: 4.1.1 | B59: Substituição em Férias | C59: 0 | D59: =ROUNDUP($D$26*$C59,2) -> 0
A60: 4.1.2 | B60: Ausências por enfermidade | C60: 0 | D60: =ROUNDUP($D$26*$C60,2) -> 0
A61: 4.1.3 | B61: Licença Maternidade | C61: 0 | D61: 0
A62: 4.1.4 | B62: Licença Paternidade | C62: 0 | D62: 0
A63: 4.1.5 | B63: Ausências legais | C63: 0 | D63: 0
A64: 4.1.6 | B64: Acidente de trabalho | C64: 0 | D64: 0
A65: 4.1.7 | B65: Aviso Prévio Trabalhado (APT) | C65: 0 | D65: 0
A66: 4.1.8 | B66: Outros (especificar) | C66: 0 | D66: 0
A67: SM4.1 | B67: Subtotal da provisão de substituição e horas extras | C67: =ROUND(D67/$D$26,4) ->  | D67: =D58 -> 0
A68: SM4.2 | B68: Incidencia de proporcional de férias, 1/3 e 13º sobre reposição | C68: =ROUND((2/12+(1/3/12)),4) -> 0.1944 | D68: =ROUNDUP(D67*C68,2) -> 0
A69: SM4.3 | B69: Incidência encargos sociais sobre reposição/extra + proporcional | C69: =C46 -> 0.368 | D69: =ROUNDUP((D67+D68)*C69,2) -> 0
A70: TM4 | B70: Total Módulo 3 (Fato Gerador) | C70: =ROUND(D70/$D$26,4) ->  | D70: =SUM(D67:D69) -> 0
A71: M5 | B71: MÓDULO 5: Insumos de mão de obra
A72: 5.1 | B72: Insumos continuos (Ordinário) | C72: Referência | D72: Valor (R$)
A73: 5.1.1 | B73: Uniforme (não exigido) | D73: 0
A74: 5.2 | B74: Insumos por demanda (Fato Gerador) | C74: Valor Unitário (R$) | D74: Valor Mensal (R$)
A75: 5.2.1 | B75: Alugueis e materiais (não necessário) | C75: 0 | D75: 0
A76: SM5.1 | B76: Total Submódulo 5.1 (Ordinário) | C76: =ROUND(D76/$D$26,4) ->  | D76: =SUM(D73:D73) -> 0
A77: SM5.2 | B77: Total Submódulo 5.2 (Fato Gerador) | D77: =SUM(D75:D75) -> 0
A78: TM5 | B78: Total Módulo 5 | C78: =ROUND(D78/$D$26,4) ->  | D78: =SUM(D76,D77) -> 0
A79: M6 | B79: MÓDULO 6: Custos indiretos, tributos e lucro
A80: 6.1 | B80: Custos Indiretos | C80: STJ | D80: =BDI!C15 -> 0.05
A81: 6.2 | B81: Lucro (L) | C81: STJ | D81: =BDI!C16 -> 0.0789
A82: 6.3 | B82: Tributos Federais e Estaduais/Municipais (T) | C82: FISCAL | D82: =SUM(D83:D85) -> 0.1425
A83: 6.3.1 | B83: COFINS | C83: RFB | D83: =BDI!C18 -> 0.0165
A84: 6.3.2 | B84: PIS | C84: RFB | D84: =BDI!C19 -> 0.076
A85: 6.3.3 | B85: ISSQN | C85: SEFAZ | D85: =BDI!C20 -> 0.05
A86: TM6 | B86: Total Módulo 6 (BDI) | C86: =ROUND((((1+D80)*(1+D81))/(1-D82))-1,4) -> 0.3211 | D86: =ROUNDUP(D93*(C86),2) -> 0
A87: VM | B87: QUADRO-RESUMO VALOR MENSAL POR EMPREGADO
A88: M1 | B88: MÓDULO 1: Composição da remuneração | D88: =D26 -> 0
A89: M2 | B89: MÓDULO 2: Encargos e benefícios anuais, mensais e diários | D89: =D48 -> 0
A90: M3 | B90: MÓDULO 3: Provisão para rescisão e afastamentos | D90: =D56 -> 0
A91: M4 | B91: MÓDULO 4: Provisão de substituição e horas extras | D91: =D70 -> 0
A92: M5 | B92: MÓDULO 5: Insumos de mão de obra | D92: =D78 -> 0
A93: CM | B93: CUSTO MENSAL POR EMPREGADO | D93: =SUM(D88:D92) -> 0
A94: M6 | B94: MÓDULO 6: Custos indiretos, tributos e lucro | D94: =D86 -> 0
A95: VM | B95: VALOR MENSAL POR EMPREGADO | D95: =D93+D94 -> 0
A96: VM.1 | B96: VALOR MENSAL ORDINÁRIO (TM1 + SM2.2 + SM 2.3 + SM5.1) | C96: Incluso BDI | D96: =ROUND((D88+D76+D46+D47)*(1+C86),2) -> 0
A97: VM.2 | B97: RESERVA MENSAL CONTA VINCULADA (M3 + SM2.1) | C97: Incluso BDI | D97: =ROUND((D45+D56)*(1+C86),2) -> 0
A98: VM.3 | B98: RESERVA MENSAL FATO GERADOR (M4 + SM5.2) | C98: Incluso BDI | D98: =ROUND((D70+D77)*(1+C86),2) -> 0

Sheet 5.Ass. Adm. Sup
B1: PLANILHA DE CUSTOS E FORMAÇÃO DE PREÇOS PARA SERVIÇOS DEDICADOS
A2: A | B2: Dados da Proponente
A3: A1 | B3: Nome da Empresa: | C3: =BDI!C3 -> ORÇAMENTO REFERÊNCIAL
A4: A2 | B4: CNPJ: | C4: =BDI!C4 -> 0
A5: A3 | B5: Regime Tributário: | C5: =BDI!C5 -> LUCRO REAL
A6: B | B6: Discriminação dos serviços
A7: B1 | B7: Data da Apresentação da Proposta: | D7: 2025-03-14
A8: B2 | B8: Ano do Acordo, Convenção ou Dissídio Coletivo: | C8: SINTEG x SEAC | D8: 2025/2025
A9: B3 | B9: Registro no MTE | D9: PB000113/2025
A10: B4 | B10: Data base CCT | D10: 2025-01-01
A11: B5 | B11: Fim vigência CCT | D11: 2025-12-31
A12: B6 | B12: Munícipio/UF: | D12: João Pessoa/PB
A13: B7 | B13: Meses de execução contratual: | D13: 12
A14: C | B14: C. Mão de obra vinculada à execução contratual
A15: C1 | B15: Classificação Brasileira de Ocupações (CBO) | C15: =Resumo!B7 -> 2521-05
A16: C2 | B16: Categoria profissional (vinculada à execução contratual) | C16: =Resumo!C7 -> Assistente Administrativo Nível III - Escolaridade superior
A17: C3 | B17: Carga horaria semanal | C17: 44 | D17: horas/semana
A18: C4 | B18: Jornada seg-qui (incluido 1h almoço) | C18: 9h | D18: 08h00-18h00
A19: C5 | B19: Jornada sex (incluido 1h almoço) | C19: 8h | D19: 08h00-17h00
A20: C6 | B20: Piso normativo da categoria profissional | C20: Valor | D20: 5540.35
A21: C7 | B21: Salário proposto no contrato | C21: Valor | D21: =Resumo!G7 -> 0
A22: C8 | B22: Profissional será subistituido em afastamentos? | D22: Não
A23: M1 | B23: MÓDULO 1: Composição da remuneração
A24: 1 | B24: Composição da Remuneração | C24: Porcentagem (%) | D24: Valor (R$)
A25: 1.1 | B25: Salário Base | C25: 1 | D25: =D21 -> 0
A26: TM1 | B26: Total Módulo 1 | D26: =SUM(D25:D25) -> 0
A27: M2 | B27: MÓDULO 2: Encargos e benefícios anuais, mensais e diários
A28: 2.1 | B28: 13º salário, férias e adicional de férias (Conta Vinculada) | C28: Porcentagem (%) | D28: Valor (R$)
A29: 2.1.1 | B29: 13º salário | C29: =ROUND(1/12,4) -> 0.0833 | D29: =ROUNDUP($D$26/12,2) -> 0
A30: 2.1.2 | B30: Adicional de Férias (1/3 Constitucional) | C30: =ROUND(1/12/3,4) -> 0.0278 | D30: =ROUNDUP($D$26/3/12,2) -> 0
A31: 2.1.3 | B31: Incidencia dos encargos sociais sobre 13º e 1/3 | C31: =ROUND((C29+C30)*C46,4) -> 0.0409 | D31: =ROUNDUP($D$26*$C31,2) -> 0
A32: 2.2 | B32: Encargos e contribuições sociais | C32: Porcentagem (%) | D32: Valor (R$)
A33: 2.2.1 | B33: INSS | C33: 0.2 | D33: =ROUNDUP($D$26*$C33,2) -> 0
A34: 2.2.2 | B34: FGTS | C34: 0.08 | D34: =ROUNDUP($D$26*$C34,2) -> 0
A35: 2.2.3 | B35: SAT = RAT x FAP | C35: =BDI!C8 -> 0.03 | D35: 0
A36: 2.2.4 | B36: Salário Educação | C36: =BDI!C9 -> 0.025 | D36: 0
A37: 2.2.5 | B37: SESC - SESI | C37: =BDI!C10 -> 0.015 | D37: 0
A38: 2.2.6 | B38: SENAI - SENAC | C38: =BDI!C11 -> 0.01 | D38: 0
A39: 2.2.7 | B39: SEBRAE | C39: =BDI!C12 -> 0.006 | D39: 0
A40: 2.2.8 | B40: INCRA | C40: =BDI!C13 -> 0.002 | D40: 0
A41: 2.3 | B41: Benefícios mensais e diários | C41: Referência | D41: Valor (R$)
A42: 2.3.1 | B42: Vale transporte (CCT C13) | C42: CLT/CCT | D42: =ROUND(IF(D26=0,0,IF((22*5.2*2)-(D26*0.06)>0,(22*5.2*2)-(D26*0.06),0)),2) -> 0
A43: 2.3.2 | B43: Vale alimentação (CCT C12) | C43: CCT | D43: 0
A44: 2.3.3 | B44: Assistência Odontológica (CCT C14) | C44: CCT | D44: 0
A45: SM2.1 | B45: Total Submódulo 2.1 (Conta Vinculada) | C45: =SUM(C29:C31) -> 0.152 | D45: =SUM(D29:D31) -> 0
A46: SM2.2 | B46: Total Submódulo 2.2 | C46: =SUM(C33:C40) -> 0.368 | D46: =SUM(D33:D40) -> 0
A47: SM2.3 | B47: Total Submódulo 2.3 | C47: =ROUND(D47/$D$26,4) ->  | D47: =SUM(D42:D44) -> 0
A48: TM2 | B48: Total Módulo 2 | C48: =ROUND(D48/$D$26,4) ->  | D48: =SUM(D45:D47) -> 0
A49: M3 | B49: MÓDULO 3: Provisão para rescisão e afastamentos (Conta Vinculada)
A50: 3 | B50: Elementos de Custo para Provisão | C50: Porcentagem (%) | D50: Valor (R$)
A51: 3.1.1 | B51: Aviso Prévio Indenizado (API) | C51: =ROUND(1/12*5%,4) -> 0.0042 | D51: =ROUNDUP($D$26*$C51,2) -> 0
A52: 3.1.2 | B52: Incidencia do FGTS sobre API | C52: =ROUND(1/12*5%*8%,4) -> 0.0003 | D52: 0
A53: 3.2 | B53: Aviso Prévio Trabalhado (APT) | C53: 0 | D53: 0
A54: 3.3 | B54: Multa sobre saldo FGTS | C54: =0.08*0.4*(1+2/12+(1/3*1/12)) -> 0.03822222222 | D54: 0
A55: 3.4 | B55: Licença Maternidade | C55: =ROUND((1/12+(1/3/12))*24%*22%*6/12,4) -> 0.0029 | D55: 0
A56: TM3 | B56: Total Módulo 3 (Conta Vinculada) | C56: =SUM(C51:C55) -> 0.04562222222 | D56: =SUM(D51:D55) -> 0
A57: M4 | B57: MÓDULO 4: Provisão de substituição e horas extras (Fato Gerador)
A58: 4.1 | B58: Substituição em afastamentos | C58: Porcentagem (%) | D58: =SUM(D59:D66) -> 0
A59: 4.1.1 | B59: Substituição em Férias | C59: 0 | D59: =ROUNDUP($D$26*$C59,2) -> 0
A60: 4.1.2 | B60: Ausências por enfermidade | C60: 0 | D60: =ROUNDUP($D$26*$C60,2) -> 0
A61: 4.1.3 | B61: Licença Maternidade | C61: 0 | D61: 0
A62: 4.1.4 | B62: Licença Paternidade | C62: 0 | D62: 0
A63: 4.1.5 | B63: Ausências legais | C63: 0 | D63: 0
A64: 4.1.6 | B64: Acidente de trabalho | C64: 0 | D64: 0
A65: 4.1.7 | B65: Aviso Prévio Trabalhado (APT) | C65: 0 | D65: 0
A66: 4.1.8 | B66: Outros (especificar) | C66: 0 | D66: 0
A67: SM4.1 | B67: Subtotal da provisão de substituição e horas extras | C67: =ROUND(D67/$D$26,4) ->  | D67: =D58 -> 0
A68: SM4.2 | B68: Incidencia de proporcional de férias, 1/3 e 13º sobre reposição | C68: =ROUND((2/12+(1/3/12)),4) -> 0.1944 | D68: =ROUNDUP(D67*C68,2) -> 0
A69: SM4.3 | B69: Incidência encargos sociais sobre reposição/extra + proporcional | C69: =C46 -> 0.368 | D69: =ROUNDUP((D67+D68)*C69,2) -> 0
A70: TM4 | B70: Total Módulo 3 (Fato Gerador) | C70: =ROUND(D70/$D$26,4) ->  | D70: =SUM(D67:D69) -> 0
A71: M5 | B71: MÓDULO 5: Insumos de mão de obra
A72: 5.1 | B72: Insumos continuos (Ordinário) | C72: Referência | D72: Valor (R$)
A73: 5.1.1 | B73: Uniforme (não exigido) | D73: 0
A74: 5.2 | B74: Insumos por demanda (Fato Gerador) | C74: Valor Unitário (R$) | D74: Valor Mensal (R$)
A75: 5.2.1 | B75: Alugueis e materiais (não necessário) | C75: 0 | D75: 0
A76: SM5.1 | B76: Total Submódulo 5.1 (Ordinário) | C76: =ROUND(D76/$D$26,4) ->  | D76: =SUM(D73:D73) -> 0
A77: SM5.2 | B77: Total Submódulo 5.2 (Fato Gerador) | D77: =SUM(D75:D75) -> 0
A78: TM5 | B78: Total Módulo 5 | C78: =ROUND(D78/$D$26,4) ->  | D78: =SUM(D76,D77) -> 0
A79: M6 | B79: MÓDULO 6: Custos indiretos, tributos e lucro
A80: 6.1 | B80: Custos Indiretos | C80: STJ | D80: =BDI!C15 -> 0.05
A81: 6.2 | B81: Lucro (L) | C81: STJ | D81: =BDI!C16 -> 0.0789
A82: 6.3 | B82: Tributos Federais e Estaduais/Municipais (T) | C82: FISCAL | D82: =SUM(D83:D85) -> 0.1425
A83: 6.3.1 | B83: COFINS | C83: RFB | D83: =BDI!C18 -> 0.0165
A84: 6.3.2 | B84: PIS | C84: RFB | D84: =BDI!C19 -> 0.076
A85: 6.3.3 | B85: ISSQN | C85: SEFAZ | D85: =BDI!C20 -> 0.05
A86: TM6 | B86: Total Módulo 6 (BDI) | C86: =ROUND((((1+D80)*(1+D81))/(1-D82))-1,4) -> 0.3211 | D86: =ROUNDUP(D93*(C86),2) -> 0
A87: VM | B87: QUADRO-RESUMO VALOR MENSAL POR EMPREGADO
A88: M1 | B88: MÓDULO 1: Composição da remuneração | D88: =D26 -> 0
A89: M2 | B89: MÓDULO 2: Encargos e benefícios anuais, mensais e diários | D89: =D48 -> 0
A90: M3 | B90: MÓDULO 3: Provisão para rescisão e afastamentos | D90: =D56 -> 0
A91: M4 | B91: MÓDULO 4: Provisão de substituição e horas extras | D91: =D70 -> 0
A92: M5 | B92: MÓDULO 5: Insumos de mão de obra | D92: =D78 -> 0
A93: CM | B93: CUSTO MENSAL POR EMPREGADO | D93: =SUM(D88:D92) -> 0
A94: M6 | B94: MÓDULO 6: Custos indiretos, tributos e lucro | D94: =D86 -> 0
A95: VM | B95: VALOR MENSAL POR EMPREGADO | D95: =D93+D94 -> 0
A96: VM.1 | B96: VALOR MENSAL ORDINÁRIO (TM1 + SM2.2 + SM 2.3 + SM5.1) | C96: Incluso BDI | D96: =ROUND((D88+D76+D46+D47)*(1+C86),2) -> 0
A97: VM.2 | B97: RESERVA MENSAL CONTA VINCULADA (M3 + SM2.1) | C97: Incluso BDI | D97: =ROUND((D45+D56)*(1+C86),2) -> 0
A98: VM.3 | B98: RESERVA MENSAL FATO GERADOR (M4 + SM5.2) | C98: Incluso BDI | D98: =ROUND((D70+D77)*(1+C86),2) -> 0

Sheet 6.Sec. Exe
B1: PLANILHA DE CUSTOS E FORMAÇÃO DE PREÇOS PARA SERVIÇOS DEDICADOS
A2: A | B2: Dados da Proponente
A3: A1 | B3: Nome da Empresa: | C3: =BDI!C3 -> ORÇAMENTO REFERÊNCIAL
A4: A2 | B4: CNPJ: | C4: =BDI!C4 -> 0
A5: A3 | B5: Regime Tributário: | C5: =BDI!C5 -> LUCRO REAL
A6: B | B6: Discriminação dos serviços
A7: B1 | B7: Data da Apresentação da Proposta: | D7: 2025-03-14
A8: B2 | B8: Ano do Acordo, Convenção ou Dissídio Coletivo: | C8: SINTEG x SEAC | D8: 2025/2025
A9: B3 | B9: Registro no MTE | D9: PB000113/2025
A10: B4 | B10: Data base CCT | D10: 2025-01-01
A11: B5 | B11: Fim vigência CCT | D11: 2025-12-31
A12: B6 | B12: Munícipio/UF: | D12: João Pessoa/PB
A13: B7 | B13: Meses de execução contratual: | D13: 12
A14: C | B14: C. Mão de obra vinculada à execução contratual
A15: C1 | B15: Classificação Brasileira de Ocupações (CBO) | C15: =Resumo!B8 -> 2523-05
A16: C2 | B16: Categoria profissional (vinculada à execução contratual) | C16: =Resumo!C8 -> Secretária(o) executiva(o)
A17: C3 | B17: Carga horaria semanal | C17: 44 | D17: horas/semana
A18: C4 | B18: Jornada seg-qui (incluido 1h almoço) | C18: 9h | D18: 08h00-18h00
A19: C5 | B19: Jornada sex (incluido 1h almoço) | C19: 8h | D19: 08h00-17h00
A20: C6 | B20: Piso normativo da categoria profissional | C20: Valor | D20: 6383.31
A21: C7 | B21: Salário proposto no contrato | C21: Valor | D21: =Resumo!G8 -> 0
A22: C8 | B22: Profissional será subistituido em afastamentos? | D22: Não
A23: M1 | B23: MÓDULO 1: Composição da remuneração
A24: 1 | B24: Composição da Remuneração | C24: Porcentagem (%) | D24: Valor (R$)
A25: 1.1 | B25: Salário Base | C25: 1 | D25: =D21 -> 0
A26: TM1 | B26: Total Módulo 1 | D26: =SUM(D25:D25) -> 0
A27: M2 | B27: MÓDULO 2: Encargos e benefícios anuais, mensais e diários
A28: 2.1 | B28: 13º salário, férias e adicional de férias (Conta Vinculada) | C28: Porcentagem (%) | D28: Valor (R$)
A29: 2.1.1 | B29: 13º salário | C29: =ROUND(1/12,4) -> 0.0833 | D29: =ROUNDUP($D$26/12,2) -> 0
A30: 2.1.2 | B30: Adicional de Férias (1/3 Constitucional) | C30: =ROUND(1/12/3,4) -> 0.0278 | D30: =ROUNDUP($D$26/3/12,2) -> 0
A31: 2.1.3 | B31: Incidencia dos encargos sociais sobre 13º e 1/3 | C31: =ROUND((C29+C30)*C46,4) -> 0.0409 | D31: =ROUNDUP($D$26*$C31,2) -> 0
A32: 2.2 | B32: Encargos e contribuições sociais | C32: Porcentagem (%) | D32: Valor (R$)
A33: 2.2.1 | B33: INSS | C33: 0.2 | D33: =ROUNDUP($D$26*$C33,2) -> 0
A34: 2.2.2 | B34: FGTS | C34: 0.08 | D34: =ROUNDUP($D$26*$C34,2) -> 0
A35: 2.2.3 | B35: SAT = RAT x FAP | C35: =BDI!C8 -> 0.03 | D35: 0
A36: 2.2.4 | B36: Salário Educação | C36: =BDI!C9 -> 0.025 | D36: 0
A37: 2.2.5 | B37: SESC - SESI | C37: =BDI!C10 -> 0.015 | D37: 0
A38: 2.2.6 | B38: SENAI - SENAC | C38: =BDI!C11 -> 0.01 | D38: 0
A39: 2.2.7 | B39: SEBRAE | C39: =BDI!C12 -> 0.006 | D39: 0
A40: 2.2.8 | B40: INCRA | C40: =BDI!C13 -> 0.002 | D40: 0
A41: 2.3 | B41: Benefícios mensais e diários | C41: Referência | D41: Valor (R$)
A42: 2.3.1 | B42: Vale transporte (CCT C13) | C42: CLT/CCT | D42: =ROUND(IF(D26=0,0,IF((22*5.2*2)-(D26*0.06)>0,(22*5.2*2)-(D26*0.06),0)),2) -> 0
A43: 2.3.2 | B43: Vale alimentação (CCT C12) | C43: CCT | D43: 0
A44: 2.3.3 | B44: Assistência Odontológica (CCT C14) | C44: CCT | D44: 0
A45: SM2.1 | B45: Total Submódulo 2.1 (Conta Vinculada) | C45: =SUM(C29:C31) -> 0.152 | D45: =SUM(D29:D31) -> 0
A46: SM2.2 | B46: Total Submódulo 2.2 | C46: =SUM(C33:C40) -> 0.368 | D46: =SUM(D33:D40) -> 0
A47: SM2.3 | B47: Total Submódulo 2.3 | C47: =ROUND(D47/$D$26,4) ->  | D47: =SUM(D42:D44) -> 0
A48: TM2 | B48: Total Módulo 2 | C48: =ROUND(D48/$D$26,4) ->  | D48: =SUM(D45:D47) -> 0
A49: M3 | B49: MÓDULO 3: Provisão para rescisão e afastamentos (Conta Vinculada)
A50: 3 | B50: Elementos de Custo para Provisão | C50: Porcentagem (%) | D50: Valor (R$)
A51: 3.1.1 | B51: Aviso Prévio Indenizado (API) | C51: =ROUND(1/12*5%,4) -> 0.0042 | D51: =ROUNDUP($D$26*$C51,2) -> 0
A52: 3.1.2 | B52: Incidencia do FGTS sobre API | C52: =ROUND(1/12*5%*8%,4) -> 0.0003 | D52: 0
A53: 3.2 | B53: Aviso Prévio Trabalhado (APT) | C53: 0 | D53: 0
A54: 3.3 | B54: Multa sobre saldo FGTS | C54: =0.08*0.4*(1+2/12+(1/3*1/12)) -> 0.03822222222 | D54: 0
A55: 3.4 | B55: Licença Maternidade | C55: =ROUND((1/12+(1/3/12))*24%*22%*6/12,4) -> 0.0029 | D55: 0
A56: TM3 | B56: Total Módulo 3 (Conta Vinculada) | C56: =SUM(C51:C55) -> 0.04562222222 | D56: =SUM(D51:D55) -> 0
A57: M4 | B57: MÓDULO 4: Provisão de substituição e horas extras (Fato Gerador)
A58: 4.1 | B58: Substituição em afastamentos | C58: Porcentagem (%) | D58: =SUM(D59:D66) -> 0
A59: 4.1.1 | B59: Substituição em Férias | C59: 0 | D59: =ROUNDUP($D$26*$C59,2) -> 0
A60: 4.1.2 | B60: Ausências por enfermidade | C60: 0 | D60: =ROUNDUP($D$26*$C60,2) -> 0
A61: 4.1.3 | B61: Licença Maternidade | C61: 0 | D61: 0
A62: 4.1.4 | B62: Licença Paternidade | C62: 0 | D62: 0
A63: 4.1.5 | B63: Ausências legais | C63: 0 | D63: 0
A64: 4.1.6 | B64: Acidente de trabalho | C64: 0 | D64: 0
A65: 4.1.7 | B65: Aviso Prévio Trabalhado (APT) | C65: 0 | D65: 0
A66: 4.1.8 | B66: Outros (especificar) | C66: 0 | D66: 0
A67: SM4.1 | B67: Subtotal da provisão de substituição e horas extras | C67: =ROUND(D67/$D$26,4) ->  | D67: =D58 -> 0
A68: SM4.2 | B68: Incidencia de proporcional de férias, 1/3 e 13º sobre reposição | C68: =ROUND((2/12+(1/3/12)),4) -> 0.1944 | D68: =ROUNDUP(D67*C68,2) -> 0
A69: SM4.3 | B69: Incidência encargos sociais sobre reposição/extra + proporcional | C69: =C46 -> 0.368 | D69: =ROUNDUP((D67+D68)*C69,2) -> 0
A70: TM4 | B70: Total Módulo 3 (Fato Gerador) | C70: =ROUND(D70/$D$26,4) ->  | D70: =SUM(D67:D69) -> 0
A71: M5 | B71: MÓDULO 5: Insumos de mão de obra
A72: 5.1 | B72: Insumos continuos (Ordinário) | C72: Referência | D72: Valor (R$)
A73: 5.1.1 | B73: Uniforme (não exigido) | D73: 0
A74: 5.2 | B74: Insumos por demanda (Fato Gerador) | C74: Valor Unitário (R$) | D74: Valor Mensal (R$)
A75: 5.2.1 | B75: Alugueis e materiais (não necessário) | C75: 0 | D75: 0
A76: SM5.1 | B76: Total Submódulo 5.1 (Ordinário) | C76: =ROUND(D76/$D$26,4) ->  | D76: =SUM(D73:D73) -> 0
A77: SM5.2 | B77: Total Submódulo 5.2 (Fato Gerador) | D77: =SUM(D75:D75) -> 0
A78: TM5 | B78: Total Módulo 5 | C78: =ROUND(D78/$D$26,4) ->  | D78: =SUM(D76,D77) -> 0
A79: M6 | B79: MÓDULO 6: Custos indiretos, tributos e lucro
A80: 6.1 | B80: Custos Indiretos | C80: STJ | D80: =BDI!C15 -> 0.05
A81: 6.2 | B81: Lucro (L) | C81: STJ | D81: =BDI!C16 -> 0.0789
A82: 6.3 | B82: Tributos Federais e Estaduais/Municipais (T) | C82: FISCAL | D82: =SUM(D83:D85) -> 0.1425
A83: 6.3.1 | B83: COFINS | C83: RFB | D83: =BDI!C18 -> 0.0165
A84: 6.3.2 | B84: PIS | C84: RFB | D84: =BDI!C19 -> 0.076
A85: 6.3.3 | B85: ISSQN | C85: SEFAZ | D85: =BDI!C20 -> 0.05
A86: TM6 | B86: Total Módulo 6 (BDI) | C86: =ROUND((((1+D80)*(1+D81))/(1-D82))-1,4) -> 0.3211 | D86: =ROUNDUP(D93*(C86),2) -> 0
A87: VM | B87: QUADRO-RESUMO VALOR MENSAL POR EMPREGADO
A88: M1 | B88: MÓDULO 1: Composição da remuneração | D88: =D26 -> 0
A89: M2 | B89: MÓDULO 2: Encargos e benefícios anuais, mensais e diários | D89: =D48 -> 0
A90: M3 | B90: MÓDULO 3: Provisão para rescisão e afastamentos | D90: =D56 -> 0
A91: M4 | B91: MÓDULO 4: Provisão de substituição e horas extras | D91: =D70 -> 0
A92: M5 | B92: MÓDULO 5: Insumos de mão de obra | D92: =D78 -> 0
A93: CM | B93: CUSTO MENSAL POR EMPREGADO | D93: =SUM(D88:D92) -> 0
A94: M6 | B94: MÓDULO 6: Custos indiretos, tributos e lucro | D94: =D86 -> 0
A95: VM | B95: VALOR MENSAL POR EMPREGADO | D95: =D93+D94 -> 0
A96: VM.1 | B96: VALOR MENSAL ORDINÁRIO (TM1 + SM2.2 + SM 2.3 + SM5.1) | C96: Incluso BDI | D96: =ROUND((D88+D76+D46+D47)*(1+C86),2) -> 0
A97: VM.2 | B97: RESERVA MENSAL CONTA VINCULADA (M3 + SM2.1) | C97: Incluso BDI | D97: =ROUND((D45+D56)*(1+C86),2) -> 0
A98: VM.3 | B98: RESERVA MENSAL FATO GERADOR (M4 + SM5.2) | C98: Incluso BDI | D98: =ROUND((D70+D77)*(1+C86),2) -> 0

Sheet 7.Diaria (Com Pernoite)
B1: PLANILHA DE CUSTOS E FORMAÇÃO DE PREÇOS PARA SERVIÇOS DEDICADOS
A2: A | B2: Dados da Proponente
A3: A1 | B3: Nome da Empresa: | C3: =BDI!C3 -> ORÇAMENTO REFERÊNCIAL
A4: A2 | B4: CNPJ: | C4: =BDI!C4 -> 0
A5: A3 | B5: Regime Tributário: | C5: =BDI!C5 -> LUCRO REAL
A6: M1 | B6: MÓDULO 1: Custo de Diária de Viagem (Fato Gerador)
A7: 1 | B7: Composição do Custo | C7: Referência | D7: Valor (R$)
A8: 1.1 | B8: Pernoite | C8: CCT | D8: =Resumo!G9 -> 0
A9: TM1 | B9: Total Módulo 1 | D9: =D8 -> 0
A10: M6 | B10: MÓDULO 6: Custos indiretos, tributos e lucro
A11: 6.1 | B11: Custos Indiretos | C11: STJ | D11: =BDI!C15 -> 0.05
A12: 6.2 | B12: Lucro (L) | C12: STJ | D12: 0
A13: 6.3 | B13: Tributos Federais e Estaduais/Municipais (T) | C13: FISCAL | D13: =SUM(D14:D16) -> 0
A14: 6.3.1 | B14: COFINS | C14: RFB | D14: 0
A15: 6.3.2 | B15: PIS | C15: RFB | D15: 0
A16: 6.3.3 | B16: ISSQN | C16: SEFAZ | D16: 0
A17: TM6 | B17: Total Módulo 6 (BDI) | C17: =ROUND((((1+D11)*(1+D12))/(1-D13))-1,4) -> 0.05 | D17: =ROUNDUP(D9*(C17),2) -> 0
A18: VM | B18: QUADRO-RESUMO VALOR MENSAL POR EMPREGADO
A19: M1 | B19: MÓDULO 1: Composição da remuneração | D19: =D9 -> 0
A20: M6 | B20: MÓDULO 6: Custos indiretos, tributos e lucro | D20: =D17 -> 0
A21: VM | B21: VALOR MENSAL POR EMPREGADO | D21: =SUM(D19:D20) -> 0
A22: VM.1 | B22: VALOR MENSAL ORDINÁRIO (TM1 + SM2.2 + SM 2.3 + SM5.1) | C22: Incluso BDI | D22: 0
A23: VM.2 | B23: RESERVA MENSAL CONTA VINCULADA (M3 + SM2.1) | C23: Incluso BDI | D23: 0
A24: VM.3 | B24: RESERVA MENSAL FATO GERADOR (M4 + SM5.2) | C24: Incluso BDI | D24: =D21 -> 0
A25: OBS | B25: OBSERVAÇÕES
A26: Obs1 | B26: Trata-se de custos sob demanda, pagas por fato gerador, conforme demanda prévia da Contratante e comprovantes da Contratada.
A27: Obs2 | B27: Conforme pg 54 do Manual do STJ, as despesas com diárias, passagens e ajudas de custo, quando caracterizadas como indenizatória ou reembolso, não integram a base de cálculo do faturamento da contratada, e por consequência não sofrem incidência de Encargos e Tributos (ISS, PIS e Cofins) e lucro. Por depender da estrutura administrativa e financeira da contratada, tal despesa tem incidência dos custos indiretos e despesa financeira.
A28: Obs3 | B28: CCT C10. O motorista fará jus a uma diária de R$ 103,15 (cento e três reais e quinze centavos), sempre que em viagens tiver que pernoitar em cidade diferente do seu domicílio. Nos casos de viagens que o obrigue a permanecer mais de 12 (doze) ou 08 (oito) horas fora do seu domicílio, receberá a importância correspondente de 2/3 e 1/3, respectivamente, do valor da diária.

Sheet 8.Diaria (Sem Pernoite)
B1: PLANILHA DE CUSTOS E FORMAÇÃO DE PREÇOS PARA SERVIÇOS DEDICADOS
A2: A | B2: Dados da Proponente
A3: A1 | B3: Nome da Empresa: | C3: =BDI!C3 -> ORÇAMENTO REFERÊNCIAL
A4: A2 | B4: CNPJ: | C4: =BDI!C4 -> 0
A5: A3 | B5: Regime Tributário: | C5: =BDI!C5 -> LUCRO REAL
A6: M1 | B6: MÓDULO 1: Custo de Diária de Viagem (Fato Gerador)
A7: 1 | B7: Composição do Custo | C7: Referência | D7: Valor (R$)
A8: 1.1 | B8: Pernoite | C8: CCT | D8: =Resumo!G10 -> 0
A9: TM1 | B9: Total Módulo 1 | D9: =D8 -> 0
A10: M6 | B10: MÓDULO 6: Custos indiretos, tributos e lucro
A11: 6.1 | B11: Custos Indiretos | C11: STJ | D11: =BDI!C15 -> 0.05
A12: 6.2 | B12: Lucro (L) | C12: STJ | D12: 0
A13: 6.3 | B13: Tributos Federais e Estaduais/Municipais (T) | C13: FISCAL | D13: =SUM(D14:D16) -> 0
A14: 6.3.1 | B14: COFINS | C14: RFB | D14: 0
A15: 6.3.2 | B15: PIS | C15: RFB | D15: 0
A16: 6.3.3 | B16: ISSQN | C16: SEFAZ | D16: 0
A17: TM6 | B17: Total Módulo 6 (BDI) | C17: =ROUND((((1+D11)*(1+D12))/(1-D13))-1,4) -> 0.05 | D17: =ROUNDUP(D9*(C17),2) -> 0
A18: VM | B18: QUADRO-RESUMO VALOR MENSAL POR EMPREGADO
A19: M1 | B19: MÓDULO 1: Composição da remuneração | D19: =D9 -> 0
A20: M6 | B20: MÓDULO 6: Custos indiretos, tributos e lucro | D20: =D17 -> 0
A21: VM | B21: VALOR MENSAL POR EMPREGADO | D21: =SUM(D19:D20) -> 0
A22: VM.1 | B22: VALOR MENSAL ORDINÁRIO (TM1 + SM2.2 + SM 2.3 + SM5.1) | C22: Incluso BDI | D22: 0
A23: VM.2 | B23: RESERVA MENSAL CONTA VINCULADA (M3 + SM2.1) | C23: Incluso BDI | D23: 0
A24: VM.3 | B24: RESERVA MENSAL FATO GERADOR (M4 + SM5.2) | C24: Incluso BDI | D24: =D21 -> 0
A25: OBS | B25: OBSERVAÇÕES
A26: Obs1 | B26: Trata-se de custos sob demanda, pagas por fato gerador, conforme demanda prévia da Contratante e comprovantes da Contratada.
A27: Obs2 | B27: Conforme pg 54 do Manual do STJ, as despesas com diárias, passagens e ajudas de custo, quando caracterizadas como indenizatória ou reembolso, não integram a base de cálculo do faturamento da contratada, e por consequência não sofrem incidência de Encargos e Tributos (ISS, PIS e Cofins) e lucro. Por depender da estrutura administrativa e financeira da contratada, tal despesa tem incidência dos custos indiretos e despesa financeira.
A28: Obs3 | B28: CCT C10. O motorista fará jus a uma diária de R$ 103,15 (cento e três reais e quinze centavos), sempre que em viagens tiver que pernoitar em cidade diferente do seu domicílio. Nos casos de viagens que o obrigue a permanecer mais de 12 (doze) ou 08 (oito) horas fora do seu domicílio, receberá a importância correspondente de 2/3 e 1/3, respectivamente, do valor da diária.

Sheet LEIAME
C1: ORIENTAÇÕES E JUSTIFICATIVAS
A2: A | B2: Fórmulas | C2: Instruções, Justificativas e Fundamentos
A3: A1 | B3: Preencher coluna C
A4: A2 | B4: Preencher coluna C
A5: A3 | B5: Preencher coluna D
A6: B | B6: Fórmulas | C6: Instruções, Justificativas e Fundamentos
A7: B1 | B7: Preencher coluna D
A8: B2 | B8: Preencher coluna C e D
A9: B3 | B9: Preencher coluna D
A10: B4 | B10: Preencher coluna D
A11: B5 | B11: Preencher coluna D
A12: B6 | B12: Dados fixos
A13: B7 | B13: Dados fixos
A14: B8 | B14: Dados fixos
A15: C | B15: Fórmulas | C15: Instruções, Justificativas e Fundamentos
A16: C1 | B16: Dados fixos
A17: C2 | B17: Dados fixos | C17: https://www.mtecbo.gov.br/cbosite/pages/home.jsf
A18: C3 | B18: Dados fixos
A19: C4 | B19: Dados fixos | C19: Jornada de trabalho de segunda a quinta, incluindo horario de almoço
A20: C5 | B20: Dados fixos | C20: Jornada de trabalho de sexta, incluindo horario de almoço
A21: C6 | B21: Preencher coluna D | C21: Valor do CCT Base
A22: C7 | B22: Preencher coluna D | C22: Valor proposto
A23: C8 | B23: Dados fixos | C23: Caso seja necessário substituição em afastamentos, dimensionar custos no Modulo 4. Recomenda-se substituição apenas em funções operacionais essenciais como: limpeza, copeiragem, vigilância, motorista, recepcionista, almoxarife e secretária. Cargos técnicos ou administrativos que exijam trabalhos intelectuais, não é sugerido a substituição.
A24: M1 | B24: Fórmulas | C24: Instruções, Justificativas e Fundamentos
A25: 1 | B25: Porcentagens FIXAS | C25: As % não podem ser modificadas na proposta, para manter a isonomia da licitação, pois trata-se de encargos obrigatórios.
A26: 1.1 | B26: Máximo = Codevasf / Mínimo = CCT | C26: É a contraprestação devida e paga diretamente ao trabalhador. art. 428, § 2o, da CLT, com redação dada pela Lei no 10.097/2000. Informativo de Licitações e Contratos nº 360 do TCU
A27: 1.2 | B27: FIXO = 30% ou 0% | C27: Súmula no 191 do TST
A28: 1.3 | B28: FIXO = 40%, 20% ou 10% | C28: art. 192 da CLT, Súmula 228 e 448 do TST
A29: 1.4 | B29: FIXO = conforme dimensionamento | C29: art. 73 da CLT. Deverá ser realizado o calculo do adicional noturno, considerando o adicional de 20% sobre a escala de 22h à 5hs, e hora noturna de 52,5 min.
A30: 1.5 | B30: Especificar
A31: TM1 | B31: Soma
A32: M2 | B32: Fórmulas | C32: Instruções, Justificativas e Fundamentos
A33: 2.1 | B33: Porcentagens FIXAS | C33: As % não podem ser modificadas na proposta, para manter a isonomia da licitação, pois trata-se de encargos obrigatórios.
A34: 2.1.1 | B34: FIXO = 1/12 | C34: CF/88 art 7 Inciso VIII; Leis 4.090/1962 e 4.749/1962; Decreto 57.155/1965; Súmulas nº 14 e 157 – TST; Acórdão TCU 1.753/2008
A35: 2.1.2 | B35: FIXO = 1/12/3 | C35: Art. 7º, XVII, CF/88; Art. 129 a 153 da CLT; Súmulas 14, 100, 171, 261; art. 214 § 4º do Decreto nº 3.048/99, Art. 28 § 9º, 245 alínea “d” da Lei nº 8.212/91, art. 134 e 137 da CLT, Súmula nº 7 – TST, Súmula Nº 81 – TST
A36: 2.1.3 | B36: FIXO = SM2.2 * (1/12+1/12/3) | C36: Art. 7º, VIII e XVII, CF/88
A37: 2.2 | B37: Porcentagens FIXAS ou VARIÁVEIS | C37: Apenas celulas em vermelho podem ser modificadas conforme realidade tributária da proponente. As demais são porcentagens FIXAS pois trata-se de encargos obrigatórios.
A38: 2.2.1 | B38: FIXO = 20% | C38: Contribuição Previdenciária sobre a Folha de Pagamentos (CPFP); Art. 22, Inciso I, da Lei nº 8.212/91; Lei 13.161/2015, IN RFB nº 1.436/2013, Acórdão TCU 93/2015, 480/2015, 6013/2015
A39: 2.2.2 | B39: FIXO = 8% | C39: Fundo de Garantia do Tempo de Serviço (FGTS); art. 15 da Lei 8.036/90
A40: 2.2.3 | B40: RAT = 1%,2%,3% e FAP = 0,5 à 2,0 | C40: Apresentar extrato do eSocial com indíce; Seguro de Acidente de Trabalho (SAT ou GILRAT); Anexo V do Regulamento da Previdência Social – RPS (Decreto n. 3.048/1999), Instrução Normativa RFB n. 971/2009. Súmula 351 do STJ. Acórdão TCU nº 2831/2015
A41: 2.2.4 | B41: Váriavel do FPAS = 2,5% à 0% | C41: Considerado FPAS 515 - Comércio e Serviços, em caso de alteração apresentar extrato do eSocial com FPAS; Contribuições Sociais; art. 3º da Lei nº. 11.457/2007; IN RFB 971/2009 (Anexo II)
A42: 2.2.5 | B42: Váriavel do FPAS = 1,5% à 0% | C42: Considerado FPAS 515 - Comércio e Serviços, em caso de alteração apresentar extrato do eSocial com FPAS; Contribuições Sociais; art. 3º da Lei nº. 11.457/2007; IN RFB 971/2009 (Anexo II)
A43: 2.2.6 | B43: Váriavel do FPAS = 1,0% à 0% | C43: Considerado FPAS 515 - Comércio e Serviços, em caso de alteração apresentar extrato do eSocial com FPAS; Contribuições Sociais; art. 3º da Lei nº. 11.457/2007; IN RFB 971/2009 (Anexo II)
A44: 2.2.7 | B44: Váriavel do FPAS = 0,6% à 0% | C44: Considerado FPAS 515 - Comércio e Serviços, em caso de alteração apresentar extrato do eSocial com FPAS; Contribuições Sociais; art. 3º da Lei nº. 11.457/2007; IN RFB 971/2009 (Anexo II)
A45: 2.2.8 | B45: Váriavel do FPAS = 0,2% à 0% | C45: Considerado FPAS 515 - Comércio e Serviços, em caso de alteração apresentar extrato do eSocial com FPAS; Contribuições Sociais; art. 3º da Lei nº. 11.457/2007; IN RFB 971/2009 (Anexo II)
A46: 2.3 | B46: Valores VARIÁVEIS | C46: Os valores poderão ser modificados, mas não podem ser SUPERIOR a Planilha de Custos nem INFERIOR as Canvenções/Acordos Coletivos da Categoria. Vedado inclusão de PL (participação dos lucros) e benefícios não incluidos em CCTs.
A47: 2.3.1 | B47: f=(X*22)-(R*0,06*22/30) | C47: X = valor das tarifas de ida e volta; R = remuneração; Valor sempre maior que zero; Vale-transporte: Lei 7.418/1985. Decreto 95.247/1987.
A48: 2.3.2 | B48: Máximo = SICRO / Mínimo = CCT | C48: Em caso de desconto na folha de maximo de 20% do vale, o mesmo deve ser integrado a proposta. Apresentar inscrição no Programa de Alimentação do Trabalhador – PAT, Auxílio Alimentação: § 2º, art. 457 da CLT; Lei 6.321/1976.
A49: 2.3.3 | B49: Máximo = SICRO / Mínimo = CCT | C49: Benefício conforme política da empresa ou Convenção Coletiva de Trabalho (CCT). Em inexistência de cláusula o valor poderá ser zero.
A50: 2.3.4 | B50: Máximo = SICRO / Mínimo = CCT | C50: Benefício conforme política da empresa ou Convenção Coletiva de Trabalho (CCT). Em inexistência de cláusula o valor poderá ser zero.
A51: 2.3.5 | B51: Mínimo = CCT | C51: Benefício conforme política da empresa ou Convenção Coletiva de Trabalho (CCT). Em inexistência de cláusula o valor poderá ser zero.
A52: 2.3.6 | B52: Mínimo = CCT | C52: Benefício conforme política da empresa ou Convenção Coletiva de Trabalho (CCT). Em inexistência de cláusula o valor poderá ser zero.
A53: SM2.1 | B53: Soma percentual
A54: SM2.2 | B54: Soma percentual
A55: SM2.3 | B55: Soma percentual
A56: TM2 | B56: Soma percentual
A57: M3 | B57: Fórmulas | C57: Instruções, Justificativas e Fundamentos
A58: 3 | B58: Porcentagens FIXAS | C58: As % não podem ser modificadas na proposta, para manter a isonomia da licitação, pois trata-se de provisões de verbas indenizatórias obrigatórias, porém de estimativa probabilistica que podem modificar conforme andamento do contrato.
A59: 3.1.1 | B59: f=1/12*5%=0,42% | C59: Modelo STJ. 1/12 = proporção mensal (rescisão), 5% = prob de API. art. 487 § 1º da CLT; art. 7º, XXI da CF/88
A60: 3.1.2 | B60: f=1/12*5%*8%=0,03% | C60: Modelo STJ, 8% = FGTS, 5% = prob de API; art. 15, da Lei 8.036/90, Súmula nº 305 do TST
A61: 3.2 | B61: Fixo = 0% | C61: Modelo STJ Adaptado. Os valores dos 30 dias do APT estão dimensionados na folha (custo ordinário). Custos de reposição da redução de jornada de 2 horas ou 7 dias corridos deverão ser calculados no Modulo 4, incluindo encargos incidentes.
A62: 3.3 | B62: f=8%*40%*(1+2/12+[1/3*1/12]) | C62: Modelo STJ Adaptado. 8% = FGTS, 40% multa FGTS, ()=Remuneração + férias + 13 + 1/3 férias, considera-se pior cenario de 100% de demissão sem justa causa. Multa compensatória, art.18, caput § 1º da Lei nº 8.036/90; OJ-SDI1-42 – TST, Lei n. 13.932/2019 (extinção contribuição social 10%)
A63: 3.4 | B63: f=(1/12+(1/3/12))*24%*22%*6/12 | C63: Modelo STJ Adaptado. () = Provisão de férias e adicional de férias sobre periodo de maternidade, 24% = % de mulheres empregadas, 22% = % de empregadas que pediram licença maternidade, 6/12 = 6 meses de licença/ 12 meses ano. Retirou-se do M4 por se tratar de rubrica de provisão por afastamento legal e não de reposição. Art. 86 da IN RFB 971/2009, REsp 1230957/RS
A64: TM3 | B64: Soma | C64: Provisão para rescisão e custos de afastamentos (Licença Maternidade)
A65: M4 | B65: Fórmulas | C65: Instruções, Justificativas e Fundamentos
A66: 4.1 | B66: Porcentagens FIXAS | C66: As % não podem ser modificadas na proposta, para manter a isonomia da licitação, pois trata-se de provisões para substituição, porém de estimativa probabilistica que podem modificar conforme andamento do contrato.
A67: 4.1.1 | B67: f=1/12 | C67: IN MP 02/08 e 06/12; Acórdão TCU 645/2009 e 265/2010
A68: 4.1.2 | B68: f=5/30/12 | C68: Modelo STJ. 5 dias de licença por ano. IN MP 02/08 e 06/12; Acórdão TCU 645/2009 e 265/2011, Art.131 , inciso III, da CLT. Art. 476 da CLT, art. 6º, §1º, alínea "f", da Lei n. 605, de 1949, e art. 12, alínea "f", do Decreto n. 27.048, de 1949
A69: 4.1.3 | B69: f=6/12*24%*22% | C69: Modelo STJ Adaptado. O modelo STJ não considerou o custo de reposição em caso de auxilio maternidade, foi considerado as metricas estatisticas do item 5.5.4 do Manual. IN MP 02/08 e 06/12; Acórdão TCU 645/2009 e 265/2012; 7º inc. XVIII, CF, Lei 8.213/91, art. 72 e Lei 11770/2008. Lei n. 13.527/2016. Art. 86 da IN RFB 971/2009
A70: 4.1.4 | B70: f=5/30/12*1,5%*76% | C70: Modelo STJ Adaptado. 5/30/12= 5 dias de licença por ano, 1,5% = % de empregados que pediram licença, 76% = % homens empregados. IN MP 02/08 e 06/12; Acórdão TCU 645/2009 e 265/2013. Art. 82 e 473 da CLT. Acórdãos TCU nº 1.904/2007 e nº 1.753/2008 - Plenário
A71: 4.1.5 | B71: f=2/30/12 | C71: Modelo STJ Adaptado. 2/30/12 = 2 ausencias por ano. Art. 7º, inciso XIX da CF. §1º do artigo 10 do ADCT. Lei n. 13.527/2016. Acórdãos TCU nº 1.904/2007 e nº 1.753/2008 - Plenário
A72: 4.1.6 | B72: f=15/30/12*1,78% | C72: Modelo STJ Adaptado. 15/30/12 = 15 dias de ausência por ano, 1,78% = % de pedidos de licença. Art. 27 do Dec. 89312/84, Art. 131 da CLT e MP. 664/2014.
A73: 4.1.7 | B73: f=7/30/12*(10% p/ renovação) | C73: Modelo STJ Adaptado. 7/30/12 = 7 dias de aviso no ano, 10% = na renovação do contrato o APT adicional é 3 dias por ano (3/30=10%). Custo de reposição do profissional em aviso prévio. Retirou-se do M3 por se tratar de rubrica de provisão de reposição e não de rescisão O percentual deve ser reduzidoem caso de renovação. Acórdão 1186/2017
A74: 4.1.8 | B74: Especificar | C74: Demais afastamentos deverão ser justificados e estatisticamente dimensionados.
A75: 4.2 | B75: Valores FIXOS | C75: Os valores e formulas não poderão ser modificados na proposta, para manter a isonomia da licitação, pois trata-se de provisões parahoras extras, porém de estimativa probabilistica que podem modificar conforme execução do contrato.
A76: 4.2.1 | B76: FIXO = 50% x horas adicionais | C76: Recomenda-se dimensionamento de horas extras mensais, com calculo do % no mês e devidas justificativas. art. 59 da CLT, art. 7º inciso XVI da CF, Súmula nº 423 do TST
A77: 4.2.2 | B77: FIXO = 100% x horas adicionais | C77: Recomenda-se dimensionamento de horas extras mensais, com calculo do % no mês e devidas justificativas. art. 59 da CLT, art. 7º inciso XVI da CF, Súmula nº 423 do TST
A78: SM4.1 | B78: Soma (4.1 a 4.8) | C78: Valor do profissional de substituição (sem encargos e proporcionais)
A79: SM4.2 | B79: f=(2/12+(1/3/12))* SM4.1 | C79: Proporcional de férias, 1/3 e 13º sobre reposição
A80: SM4.3 | B80: f=SM2.2*(SM4.1+SM4.2) | C80: Incidência das encargos sociais sobre reposição + proporcional
A81: TM4 | B81: Soma SM4.1 a SM4.3 | C81: Provisão mensal para reposição ausente
A82: M5 | B82: Fórmulas | C82: Instruções, Justificativas e Fundamentos
A83: 5.1 | B83: Valores VARIÁVEIS | C83: Os valores poderão ser modificados na proposta. A proponente deverá apresentar o seu valor mensal dos custos. A análise da proposta deverá verificar se os valores são exequiveis.
A84: 5.1.1 | B84: Dimensionar | C84: Sugere-se o dimensionamento conforme metodologia Sinapi vide aba EPI e FER, para cargos manutenção sugere-se utilizar o caderno SINAPI (Calculos e Parâmetros).
A85: 5.1.2 | B85: Dimensionar | C85: Sugere-se o dimensionamento conforme metodologia Sinapi vide aba EPI e FER, para cargos manutenção sugere-se utilizar o caderno SINAPI (Calculos e Parâmetros).
A86: 5.1.3 | B86: Dimensionar | C86: Sugere-se o dimensionamento conforme metodologia Sinapi vide aba EPI e FER, para cargos manutenção sugere-se utilizar o caderno SINAPI (Calculos e Parâmetros).
A87: 5.2 | B87: Valores VARIÁVEIS | C87: Os valores poderão ser modificados na proposta. A proponente deverá apresentar o seu valor mensal dos custos. A análise da proposta deverá verificar se os valores são exequiveis.
A88: 5.2.1 | B88: VM = VU x qde | C88: Sugere-se utilizar o valor da diária da Codevasf, e estimar a quantidade necessária de diárias por mês. Inserir quantitativo na formula
A89: 5.2.2 | B89: VM = VU x qde | C89: Sugere-se cotar VU e dimensionar a quantidade mensal. Inserir quantitativo na formula
A90: 5.2.3 | B90: VM = VU x qde | C90: Sugere-se cotar VU e dimensionar a quantidade mensal. Inserir quantitativo na formula
A91: SM5.1 | B91: Soma
A92: SM5.2 | B92: Soma
A93: TM5 | B93: Soma
A94: M6 | B94: Fórmulas | C94: Instruções, Justificativas e Fundamentos
A95: 6.1 | B95: Percentagens VARIÁVEIS | C95: As % poderão ser modificados na proposta, dentro da limitação da legislação tributária.
A96: 6.2 | B96: Variável | C96: Considerado média do caderno STJ. A proposta deve apresentar aliquota conforme realidade comercial da empresa, igual ou inferior a Planilha de Custos.
A97: 6.3 | B97: Soma percentual | C97: Somatório dos tributos. Súmula TCU nº 254/2010 é vetado inclusão de IRPJ e a CSLL
A98: 6.3.1 | B98: Variável = 0,65% a 1,65% | C98: Considerado Tributação sob Lucro Real (regime não cumulativo). A proposta deve apresenta aliquota conforme realidade tributária (Lucro Real ou Presumido), deve-se apresentar os comprovantes de aproveitamento de créditos tributários dos últimos 12 meses em caso de aplicação de "percentual de desconto" (regime cumulativo).
A99: 6.3.2 | B99: Variável = 3,0% a 7,6% | C99: Considerado Tributação sob Lucro Real (regime não cumulativo). A proposta deve apresenta aliquota conforme realidade tributária (Lucro Real ou Presumido), deve-se apresentar os comprovantes de aproveitamento de créditos tributários dos últimos 12 meses em caso de aplicação de "percentual de desconto" (regime cumulativo).
A100: 6.3.3 | B100: Variável = 2% a 5% | C100: Considerado no dimensionamento aliquota máxima. Na proposta deve ser inserido a aliquota conforme realidade tributária e devida comprovação.
A101: TM6 | B101: BDI=((1+AC+SG+RI)x(1+DF)x(1xL))/(1-T)-1 | C101: TM6 = BDI x (TM1+TM2+TM3+TM4+TM5)
A102: VM | B102: Fórmulas | C102: Instruções, Justificativas e Fundamentos
A103: M1 | B103: Importado M1
A104: M2 | B104: Importado M2
A105: M3 | B105: Importado M3
A106: M4 | B106: Importado M4
A107: M5 | B107: Importado M5
A108: CM | B108: Soma (TM1 a TM5) | C108: Custo mensal por empregado excluido BDI
A109: M6 | B109: Importado M6
A110: VM | B110: Soma (TM1 a TM6) | C110: Valor mensal por empregado incluido BDI
A111: VM.1 | B111: (TM1 + SM2.2 + SM 2.3 + SM5.1) * (1+BDI) | C111: Valor mensal ordinário da folha de pagamento, valor inclui BDI
A112: VM.2 | B112: (TM3 + SM2.1) * (1+BDI) | C112: Valor mensal a ser aportado na conta vinculada para suprimento de férias e custos de rescisão, valor inclui BDI
A113: VM.3 | B113: (TM4 + SM5.2) * (1+BDI) | C113: Valor mensal a ser reservado como empenho para pagamento de mão-de-obra substituta (se for exigido) e insumos por demanda, valor inclui BDI
